Cogmind - Beta 10.2 @@@ ROGUE MODE // 2021.01.15 @ 13:51:53 Player: Perseus Result: Destroyed by S-43 Plague with Heavy Machine Gun Performance ------------- Evolutions (9) 4500 Regions Visited (36) 7200 Robots Destroyed (364) 1820 Value Destroyed (17924) 17924 Prototype IDs (273) 5460 Alien Tech Used (14) 2800 Bonus (16357) 16357 TOTAL SCORE: 56061 Bonus ------- High Alert Combat Kills 2221 Follower Combat Kills 1137 Aligned with FarCom 300 Met Data Miner 300 Used Data Conduit 3000 Met Imprinter 300 Destroyed Z-Imprinter 1000 Met Zhirov 300 Met Warlord at Base 500 MAIN.C Attacked Warlord 500 Found Hidden Lab 3000 Decrypted A0 Command 3000 Met Warlord at Research 2000 Invited to Help at Command 2000 Scanned by Researcher 500 Pursued by Intercept 1500 Friendly Fire -5201 Cogmind --------- Core Integrity 0/1600 Matter 143/300 Energy 349/350 System Corruption 0% Temperature Cool (0) Movement Core (50) Location -1/Command Parts ------- > --- POWER (3) -------- (None) > --- PROPULSION (6) --- (None) > --- UTILITY (11) ----- Advanced Visual Processing Unit Advanced Signal Interpreter > --- WEAPON (6) ------- (None) > --- INVENTORY (4) ---- Subatomic Replicator Guided Remote Datajack Peak State ------------ > --- POWER ------------ Reinforced Antimatter Reactor Quantum Reactor Improved Quantum Reactor > --- PROPULSION ------- Biometal Leg Biometal Leg Biometal Leg Enhanced Biometal Leg Enhanced Biometal Leg Enhanced Biometal Leg > --- UTILITY ---------- Large Storage Unit Large Storage Unit Large Storage Unit Makeshift Sensor Array Advanced Signal Interpreter Experimental Terrain Scanner Terrain Scan Processor Experimental Targeting Computer Matter Drive > --- WEAPON ----------- Enhanced Quantum Rifle Long-range Phase Cannon Heavy Machine Gun Helical Railgun Helical Railgun Compact Linear Accelerator > --- INVENTORY -------- Vortex Chain Reactor Enhanced Biometal Leg Experimental Power Amplifier Experimental Heat Sink Advanced Cooling System Experimental Energy Well Advanced Phase Shifter Heavy Regenerative Plating Improved Force Field Makeshift Hacking Suite Ghost Barrier Quantum Router System Backup Module Mobile Refinery Mk. CCLXVII Advanced Variable Charge Gun Long-range Phase Cannon Warp Cannon Mass Driver Micro-nuke Launcher Guided Remote Datajack [Rating: 196] Favorites ----------- Power Light Angular Momentum Engine Engine Light Angular Momentum Engine Power Core Fission Core Reactor Antimatter Reactor Propulsion Flexi-carbon Leg Treads Advanced Heavy Treads Leg Flexi-carbon Leg Wheel Compact Wheel Hover Unit Improved Antigrav System Flight Unit VTOL Module Utility Large Storage Unit Device Advanced Heat Sink Storage Large Storage Unit Processor Advanced Signal Interpreter Hackware System Shield Protection Improved Propulsion Shielding Artifact Matter Drive Weapon Coil Gun Energy Gun Cooled Plasma Rifle Energy Cannon Phase Cannon Ballistic Gun Coil Gun Ballistic Cannon Battle Cannon Launcher Heavy Missile Launcher Special Weapon Advanced Remote Datajack Impact Weapon Great Maul Slashing Weapon Master Tearclaws Special Melee Weapon Datajack Build | -11 -10 -10 -10 -9 -8 -7 -7 -7 -7 -7 -6 -6 -6 -6 -6 -5 -5 -5 -5 -5 -4 -4 -4 -4 -4 -4 -4 -3 -3 -3 -3 -2 -2 -2 -1 -1 ------- Run | Scr Mat Min Exi Min Mat Fac Low Low Zio Dee Pro Fac Low Low Dat Pro Fac Upp Upp War Pro Fac Was Fac Upp Upp Zhi Pro Res Arm Lab Res Qua Sec Acc Com Slots Evolved 17 | . . . . . 4 2 . . . . . 2 . . . . 2 . . . . 2 . . . . . . 2 . . 2 . . 1 . Power 2 | . . . . . . 1 . . . . . . . . . . . . . . . . . . . . . . 1 . . . . . . . Propulsion 4 | . . . . . 1 . . . . . . 1 . . . . . . . . . . . . . . . . 1 . . 1 . . . . Utility 8 | . . . . . 2 1 . . . . . 1 . . . . 1 . . . . 1 . . . . . . . . . 1 . . 1 . Weapon 3 | . . . . . 1 . . . . . . . . . . . 1 . . . . 1 . . . . . . . . . . . . . . Parts Attached 956 | 1 11 14 5 . 30 45 11 15 8 19 6 40 37 63 7 15 20 41 44 15 34 1 9 7 4 22 6 40 46 5 38 59 86 107 35 10 Power 58 | . 1 1 . . 3 5 2 2 . 2 . 5 . 3 . . . . . 2 . . . . . . . 2 4 . 4 2 6 10 4 . Engine 23 | . 1 1 . . 3 5 2 2 . 1 . 2 . 3 . . . . . 1 . . . . . . . . 1 . . . . . 1 . Core 5 | . . . . . . . . . . . . 3 . . . . . . . . . . . . . . . . 1 . . . . 1 . . Reactor 30 | . . . . . . . . . . 1 . . . . . . . . . 1 . . . . . . . 2 2 . 4 2 6 9 3 . Propulsion 113 | . 6 4 . . 6 10 3 2 . 1 . 8 1 3 . . 4 . . 2 . . . . . 2 . . 7 . 6 10 9 18 8 3 Treads 7 | . . . . . . . . . . . . . . . . . . . . . . . . . . . . . 1 . 2 . . 1 2 1 Leg 85 | . 4 4 . . 6 . 3 2 . 1 . 8 1 2 . . 4 . . 2 . . . . . 2 . . 6 . 4 10 7 17 2 . Wheel 13 | . 2 . . . . 8 . . . . . . . 1 . . . . . . . . . . . . . . . . . . . . 2 . Hover 6 | . . . . . . . . . . . . . . . . . . . . . . . . . . . . . . . . . 2 . 2 2 Flight 2 | . . . . . . 2 . . . . . . . . . . . . . . . . . . . . . . . . . . . . . . Utility 510 | 1 2 3 . . 6 15 4 4 5 12 4 21 33 45 6 8 9 30 33 5 21 1 4 5 4 20 3 24 21 2 17 27 52 44 13 6 Device 423 | 1 . 1 . . 3 10 2 3 5 9 4 17 25 37 4 7 7 30 33 5 21 1 4 5 4 19 3 21 20 2 13 21 41 38 7 . Storage 16 | . 1 . . . 1 . 1 1 . . . 1 . . . . 1 . . . . . . . . 1 . . . . 2 4 1 1 1 . Processor 18 | . . . . . . 4 1 . . 1 . 1 . . . . . . . . . . . . . . . 1 1 . . 2 2 3 2 . Hackware 5 | . . . . . 1 1 . . . . . . . . . . . . . . . . . . . . . . . . . . 3 . . . Protection 33 | . 1 2 . . 1 . . . . 2 . 2 8 8 2 1 1 . . . . . . . . . . 2 . . 2 . 1 . . . Artifact 15 | . . . . . . . . . . . . . . . . . . . . . . . . . . . . . . . . . 4 2 3 6 Weapon 275 | . 2 6 5 . 15 15 2 7 3 4 2 6 3 12 1 7 7 11 11 6 13 . 5 2 . . 3 14 14 3 11 20 19 35 10 1 Energy Gun 87 | . . 1 1 . 3 4 . 2 . . 1 1 1 1 . 3 5 5 4 4 5 . 1 1 . . 2 5 2 . 3 3 8 18 3 . Energy Cannon 65 | . . 2 2 . 6 3 . . . . 1 2 1 4 . 2 2 5 4 . 4 . 1 1 . . . 2 4 1 3 5 3 4 3 . Ballistic Gun 69 | . 1 1 1 . 5 3 1 1 2 . . 2 1 6 1 1 . 1 2 1 4 . 1 . . . . 5 5 1 3 8 3 8 1 . Ballistic Cannon 16 | . . . . . . 2 1 3 . 1 . . . . . . . . . . . . 1 . . . . . 2 . . 1 3 2 . . Launcher 24 | . 1 2 . . 1 3 . . . 1 . 1 . . . 1 . . 1 1 . . 1 . . . . 2 1 . 1 1 1 2 3 . Special Weapon 10 | . . . . . . . . . 1 1 . . . 1 . . . . . . . . . . . . . . . 1 1 2 1 1 . 1 Impact Weapon 1 | . . . . . . . . . . 1 . . . . . . . . . . . . . . . . . . . . . . . . . . Slashing Weapon 1 | . . . . . . . . . . . . . . . . . . . . . . . . . . . 1 . . . . . . . . . Piercing Weapon . | . . . . . . . . . . . . . . . . . . . . . . . . . . . . . . . . . . . . . Special Melee Weapon 2 | . . . 1 . . . . 1 . . . . . . . . . . . . . . . . . . . . . . . . . . . . Unidentified Prototypes 31 | . . 1 . . 1 2 . . 3 . . 2 . . . . . . 1 3 1 . . . . . 1 . 1 . 5 1 4 4 1 . Parts Lost 178 | . . 1 . . 2 22 1 . . 8 . 2 . . . . . . 1 . . . . . . 1 . 10 23 . . 6 29 46 18 8 Power 24 | . . . . . . 2 1 . . 3 . . . . . . . . . . . . . . . . . 1 3 . . . 4 7 2 1 Propulsion 43 | . . . . . 1 9 . . . . . 1 . . . . . . . . . . . . . . . . 6 . . . 6 10 7 3 Utility 39 | . . . . . . 3 . . . 1 . 1 . . . . . . . . . . . . . 1 . 5 3 . . 1 9 8 3 4 Weapon 72 | . . 1 . . 1 8 . . . 4 . . . . . . . . 1 . . . . . . . . 4 11 . . 5 10 21 6 . Highest Loss Streak 17 | . . 1 . . 1 9 1 . . 8 . 2 . . . . . . 1 . . . . . . 1 . 6 14 . . 4 11 17 12 7 Average Slot Usage (%) 96 | . 99 99 100 100 98 84 93 99 99 84 87 98 99 99 98 100 99 99 99 99 99 92 99 100 100 98 97 99 86 83 89 98 95 95 44 39 Engine 7 | . 14 14 14 14 9 9 12 15 15 8 7 6 6 7 13 13 11 11 11 10 5 5 5 5 5 5 5 1 . . . . . . 1 . Core 1 | . . . . . . . . . . . . 5 6 5 . . . . . . . . . . . . . . 2 4 2 . . . . . Reactor 2 | . . . . . . . . . . . . . . . . . . . . . 5 5 5 5 5 5 5 8 6 4 7 12 10 10 2 1 Leg 21 | . 19 28 28 28 26 8 19 23 23 23 23 25 26 25 26 26 23 23 22 21 22 20 20 20 20 19 20 20 17 9 7 23 21 23 2 1 Device 16 | . 10 1 . . 15 10 14 14 14 10 14 16 16 17 17 19 18 16 20 22 21 22 25 25 25 24 24 24 12 11 12 15 12 10 6 5 Storage 9 | . 14 14 14 14 9 7 6 7 7 7 7 6 6 6 6 6 8 11 11 11 11 10 10 10 10 11 15 15 13 13 12 12 12 12 6 5 Processor 10 | . . . . . . 7 15 15 15 15 15 13 13 13 13 13 11 11 11 11 11 10 10 10 10 7 5 5 12 13 13 12 9 15 14 12 Protection 1 | . 3 11 14 14 9 2 . . . 2 . 2 3 1 1 . 1 . . . . . . . . . . . . . . . . . . . Energy Gun 7 | . 14 1 . . 8 3 7 6 7 2 2 3 . 5 6 5 8 16 10 15 15 15 13 14 15 15 10 5 1 . 1 4 5 15 1 . Energy Cannon 2 | . . 12 13 14 9 6 . . . . 2 4 5 . . . 2 . . . . . . . . . . . 2 3 1 6 4 . . . Ballistic Gun 9 | . 13 14 7 14 9 8 5 7 9 5 . 8 13 12 11 12 10 5 11 5 5 5 6 5 5 5 5 17 10 16 16 12 7 3 1 . Ballistic Cannon 1 | . . . . . . 1 5 7 4 . . . . . . . . . . . . . 2 5 5 5 5 1 2 . . . 4 2 . . Naked Turns . | . . . . . . . . . . . . . . . . . . . . . . . . . . . . . . . . . . . . . Heaviest Build 178 | 14 18 32 23 23 42 53 52 53 77 77 42 68 92 82 77 60 81 79 105 89 117 90 101 97 93 117 99 132 124 99 163 178 165 146 93 40 Greatest Support 174 | 20 28 25 25 25 42 48 45 50 50 60 25 80 80 80 80 80 80 80 80 93 93 93 93 93 93 98 98 98 128 70 126 174 174 161 160 160 Greatest Overweight (x) 23 | . 1 1 . . 1 11 2 1 1 8 1 1 1 1 . . 1 . 1 . 1 . 1 1 . 1 1 1 2 1 6 1 1 4 23 1 Average Overweight (x) . | . . . . . . 1 . . . . 1 . . . . . . . . . . . . . . . . . . 1 1 . . . 1 . Largest Inventory Capacity 22 | 6 8 8 8 8 10 10 10 10 10 10 10 10 10 10 10 10 16 16 16 16 16 16 16 16 16 20 20 20 20 20 20 22 22 20 16 14 Average Capacity 13 | 6 7 8 8 8 9 10 9 10 10 10 10 10 10 10 10 10 13 16 16 16 16 16 16 16 16 17 20 20 20 20 19 21 20 20 14 12 Most Carried 22 | 6 8 8 8 8 10 10 10 10 10 10 10 10 10 10 10 10 16 16 16 16 16 16 16 16 16 20 20 20 20 20 20 22 22 20 16 8 Average Carried 13 | 4 6 7 7 7 9 8 9 9 9 8 9 9 8 9 9 9 11 15 15 15 15 15 14 15 16 16 19 17 18 19 18 20 19 19 10 6 Final Capacity 22 | 6 8 8 8 8 10 10 10 10 10 10 10 10 10 10 10 10 16 16 16 16 16 16 16 16 16 20 20 20 20 20 20 22 22 16 14 4 Final Carried 21 | 5 8 7 8 8 10 10 10 10 10 10 10 10 10 10 10 10 16 16 16 16 16 15 15 16 16 20 20 20 20 20 20 21 19 16 7 2 Class Distribution -------------------- 34% | Scavenger-Mutant 18% | Scavenger-Skirmisher 18% | Mutant 8% | Derelict-Mutant 6% | Skirmisher 4% | Scavenger-Executioner Dominant Class ---------------- Mutant | -10/Materials Mutant | -10/Mines Scavenger-Mutant | -10/Exiles Scavenger-Mutant | -9/Mines Scavenger-Skirmisher | -8/Materials Scavenger-Skirmisher | -7/Factory Scavenger-Mutant | -7/Lower Caves Scavenger-Mutant | -7/Lower Caves Derelict-Mutant | -7/Zion Derelict-Mutant | -7/Deep Caves Assassin | -6/Proximity Caves Mutant | -6/Factory Mutant | -6/Lower Caves Mutant | -6/Lower Caves Mutant | -6/Data Miner Mutant | -5/Proximity Caves Mutant | -5/Factory Scavenger-Skirmisher | -5/Upper Caves Scavenger-Mutant | -5/Upper Caves Scavenger-Mutant | -5/Warlord Scavenger-Mutant | -4/Proximity Caves Scavenger-Mutant | -4/Factory Scavenger-Skirmisher | -4/Waste Scavenger-Mutant | -4/Factory Derelict-Skirmisher | -4/Upper Caves Scavenger-Skirmisher | -4/Upper Caves Scavenger-Assassin | -4/Zhirov Scavenger-Skirmisher | -3/Proximity Caves Scavenger-Mutant | -3/Research Scavenger-Mutant | -3/Armory Scavenger-Mutant | -3/Lab Scavenger-Executioner | -2/Research Scavenger-Executioner | -2/Quarantine Scavenger-Executioner | -2/Section 7 Scavenger-Mutant | -1/Access Scavenger-Mutant | -1/Command Resources | -11 -10 -10 -10 -9 -8 -7 -7 -7 -7 -7 -6 -6 -6 -6 -6 -5 -5 -5 -5 -5 -4 -4 -4 -4 -4 -4 -4 -3 -3 -3 -3 -2 -2 -2 -1 -1 ----------- Run | Scr Mat Min Exi Min Mat Fac Low Low Zio Dee Pro Fac Low Low Dat Pro Fac Upp Upp War Pro Fac Was Fac Upp Upp Zhi Pro Res Arm Lab Res Qua Sec Acc Com Matter Collected 21298 | 210 220 273 10 94 547 706 474 540 186 460 103 406 968 1640 726 186 156 704 1295 150 926 . 394 135 66 761 30 1235 995 326 690 1315 1747 2226 398 . Remotely . | . . . . . . . . . . . . . . . . . . . . . . . . . . . . . . . . . . . . . Salvage Created 22873 | 213 464 498 82 123 1432 1239 170 104 . 84 210 397 667 768 . 232 343 294 426 . 589 . 1297 390 299 443 324 444 2188 . 250 1866 1976 4252 809 . Parts 926 | 17 32 30 5 7 98 65 4 2 . . 4 27 24 26 . 11 26 22 7 . 24 . 10 7 5 16 6 18 114 . 13 67 72 139 28 . Haulers Intercepted 16 | . 1 . . . 2 1 . . . . . . . . . . 1 . . . . . . 1 . . . . 1 . . 3 2 3 1 . Recyclers Shooed 10 | . 2 . . . 2 1 . . . . . . . . . . . . . . . . . . . 1 . . 3 . . . . . 1 . Parts Field Recycled . | . . . . . . . . . . . . . . . . . . . . . . . . . . . . . . . . . . . . . Retrieved Matter . | . . . . . . . . . . . . . . . . . . . . . . . . . . . . . . . . . . . . . Parts Self-Destructed 147 | . . . . . . . 7 3 . . . . 15 17 . 5 . 5 3 49 21 . . . 4 5 4 9 . . . . . . . . Prevented 45 | . . . . . . . . 5 2 . . . 6 7 . . . . 1 8 10 . . . . 5 . 1 . . . . . . . . Kills | -11 -10 -10 -10 -9 -8 -7 -7 -7 -7 -7 -6 -6 -6 -6 -6 -5 -5 -5 -5 -5 -4 -4 -4 -4 -4 -4 -4 -3 -3 -3 -3 -2 -2 -2 -1 -1 ------- Run | Scr Mat Min Exi Min Mat Fac Low Low Zio Dee Pro Fac Low Low Dat Pro Fac Upp Upp War Pro Fac Was Fac Upp Upp Zhi Pro Res Arm Lab Res Qua Sec Acc Com Combat Hostiles Destroyed 258 | . 7 8 2 2 23 17 . . . 2 . 5 6 12 . 4 2 3 5 . 6 . 5 . . 4 . 18 24 . 3 18 26 47 9 . Melee 2 | . . . . . . . . . . 1 . . . . . . . . . . . . . . . . . . . . . . . . 1 . Guns 129 | . 7 1 1 . 6 10 . . . . . 3 1 11 . . 2 3 4 . 6 . 5 . . 4 . 7 9 . 1 10 8 27 3 . Cannons 69 | . . 4 1 2 9 2 . . . . . 2 5 . . . . . . . . . . . . . . 3 9 . 2 5 13 11 1 . AOE 46 | . . 3 . . 8 5 . . . 1 . . . . . 4 . . . . . . . . . . . 8 4 . . 2 4 3 4 . Classes Destroyed 26 | 2 7 2 1 . 3 . . 2 . 1 . . . 2 . . . . 1 . . . 1 . . . . . . . . 2 . 2 . . Worker 17 | . 2 1 . . 3 2 . . . . . 1 . . . . . . . . . . . . . . . . 5 . . 2 . . 1 . Builder 21 | . 1 1 . . 3 3 . . . . . 3 . . . . 1 . . . . . . . . . . . 6 . . 1 . 1 1 . Tunneler 12 | 5 . . . . 4 2 . . . . . . . . . . . . . . . . . . . . . . . . . . . . 1 . Hauler 16 | . 1 . . . 2 1 . . . . . . . . . . 1 . . . . . . 1 . . . . 1 . . 3 2 3 1 . Recycler 16 | 1 1 3 . 1 1 4 . . . . . . . . . . . . . . . . . 1 . . . . 1 . . . 1 . 2 . Minesweeper 7 | . . . . . . . . 1 . . . . 1 1 . 1 . 1 . . 2 . . . . . . . . . . . . . . . Mechanic 2 | . 1 . . . . . . . . . . . . . . . . . . . . . . . . . . . . . . . . 1 . . Operator 2 | . . 1 . . . 1 . . . . . . . . . . . . . . . . . . . . . . . . . . . . . . Drone 9 | . . 9 . . . . . . . . . . . . . . . . . . . . . . . . . . . . . . . . . . Watcher 17 | . 1 . . . 4 1 . . . . . . . . . . 3 . . . . . . . . . . . 5 . . . 1 1 1 . Swarmer 48 | . 3 6 . 2 8 4 . . . . . . 1 3 . 4 . 3 2 . . . . . . . . 5 . . . 1 . 2 4 . Grunt 75 | . 4 2 1 . 6 5 . . . . . 3 4 5 . . . . . . 5 . . . . 2 . . 10 . 3 3 3 16 3 . Brawler 7 | . . . . . 1 . . . . . . . . 1 . . . . . . . . . . . . . . . . . . 2 3 . . Duelist 1 | . . . . . . . . . . . . . . . . . . . . . . . . . . . . . . . . . . 1 . . Protector 1 | . . . . . . . . . . . . . . 1 . . . . . . . . . . . . . . . . . . . . . . Researcher 3 | . . . . . . . . . . . . . . . . . . . . . . . . . . . . . . . . . . 3 . . Sentry 25 | . . . . . 9 4 . . . . . 1 1 . . . . . 1 . . . . . . . . . 2 . . 3 . 4 . . Hunter 19 | . . . . . 1 1 . . . . . . . . . . . . . . 1 . . . . 1 . . 4 . . 6 3 2 . . Programmer 41 | . . . 1 . . 3 . . . . . 1 . 1 . . 2 . . . 1 . . . . . . 2 8 . . . 9 11 2 . Compactor 5 | . . . . . . . . . . . . . . . . . . . . . . . 5 . . . . . . . . . . . . . S7 Guard 2 | . . . . . . . . . . . . . . . . . . . . . . . . . . . . . . . . . . 2 . . Tracker 7 | . . . . . . . . . . . . . . . . . . . . . . . . . . . . . . . . 1 4 2 . . Combat Programmer 7 | . . . . . . . . . . . . . . . . . . . . . . . . . . . . . . . . . 5 2 . . Striker 2 | . . . . . . . . . . . . . . . . . . . . . . . . . . . . . . . . 2 . . . . Executioner 4 | . . . . . . . . . . . . . . . . . . . . . . . . . . . . . . . . 2 . 2 . . Decomposer 10 | . . . . . . . 3 . . . . . . 4 . . . . . . . . . . 3 . . . . . . . . . . . Packrat 4 | . . . . . . . . . . . . . . . . . . . 2 . . . . . . 2 . . . . . . . . . . Samaritan 16 | . . . . . . . . 2 . . . . 7 3 . . . 3 . . . . . . . 1 . . . . . . . . . . Master Thief 3 | . . . . . . . . . . . . . . 1 . . . . 1 . . . . . . 1 . . . . . . . . . . Assembled 13 | . . . . . . . . . . 2 . . . . . . . . . . . . . . . . . 11 . . . . . . . . Surgeon 1 | . . . . . . . . . . . . . . . . . . . . . . . . 1 . . . . . . . . . . . . Thug 1 | . . . . . . . . . . . . . . . . . . . . . . . . 1 . . . . . . . . . . . . Mutant 2 | . . . . . . . . . . . . . . . . . . . 1 . . . . . . . . . . . . 1 . . . . Best Kill Streak 10 | 5 6 5 1 1 9 5 . 1 . 1 . 4 1 2 . 4 3 3 3 . 5 . 3 1 . 2 . 10 9 . 3 7 4 9 3 . Combat Bots Only 10 | . 4 3 1 1 6 5 . . . 1 . 3 1 2 . 4 2 3 3 . 5 . 3 . . 2 . 10 6 . 3 5 4 8 3 . Max Kills in Single Turn 6 | 1 2 3 1 1 6 3 1 1 . 1 . 2 1 1 . 3 1 1 2 . 2 . 1 1 1 1 . 3 2 . 1 2 2 3 2 . Gunslinging 1 | . . . . . . . . . . . . . . . . . . . 1 . 1 . . . . . . . . . . . . 1 . . Exploded 3 | . . 2 . . 3 3 . . . 1 . . . . . 3 . . . . . . . . . . . 3 2 . . 2 1 2 2 . Melee 1 | . . . . . . . . . . 1 . . . . . . . . . . . . . . . . . . . . . . . . 1 . Uniques/NPCs Destroyed 1 | . . . . . . . . . . 1 . . . . . . . . . . . . . . . . . . . . . . . . . . Z-Imprinter (-7/Deep Caves) Combat | -11 -10 -10 -10 -9 -8 -7 -7 -7 -7 -7 -6 -6 -6 -6 -6 -5 -5 -5 -5 -5 -4 -4 -4 -4 -4 -4 -4 -3 -3 -3 -3 -2 -2 -2 -1 -1 -------- Run | Scr Mat Min Exi Min Mat Fac Low Low Zio Dee Pro Fac Low Low Dat Pro Fac Upp Upp War Pro Fac Was Fac Upp Upp Zhi Pro Res Arm Lab Res Qua Sec Acc Com Damage Taken 33427 | 20 298 408 120 78 787 2256 20 . . 1275 . 672 176 627 . 62 93 82 397 . 30 . . 109 . 180 . 1483 3435 . 120 2430 5049 7876 3199 2145 Core 4112 | 20 34 99 12 15 63 464 . . . 171 . 19 20 34 . . . 9 15 . . . . 21 . . . 96 466 . . 145 194 719 496 1000 Absorbed by Shields 3985 | . . . . . . . . . . . . . . . . . 34 28 137 . 11 . . 11 . 64 . 13 674 . 126 499 597 1791 . . Core Remaining (%) 63 | 92 . . . 28 88 . . . . . 9 . . . . 91 . . . . 97 . . . . . . 89 . . 58 . . 20 . . Volleys Fired 1658 | 21 48 51 10 8 76 82 32 79 2 18 10 43 70 127 78 47 25 21 91 . 46 . 25 15 24 65 1 29 82 14 55 69 114 125 54 1 Largest 6 | 1 2 2 2 2 3 3 2 1 1 3 1 3 3 3 3 3 4 4 4 . 4 . 5 5 5 5 1 5 5 1 6 6 6 6 3 1 Hottest 478 | 40 70 76 88 79 151 171 111 69 . 138 80 150 150 121 121 130 230 214 167 . 143 . 209 182 182 182 65 201 322 113 343 415 478 458 192 40 Shots Fired 3689 | 21 93 66 20 13 168 178 38 81 2 35 10 73 92 175 115 51 70 43 160 . 73 . 87 43 48 197 1 88 251 15 77 308 399 533 64 1 Gun 2653 | 21 90 21 15 8 91 112 29 57 . 25 10 40 39 149 113 46 61 38 152 . 66 . 65 29 46 188 1 59 160 1 24 231 202 431 33 . Cannon 934 | . . 35 5 5 70 57 9 24 . 7 . 33 53 26 . 3 9 5 3 . 7 . 11 14 2 9 . 17 90 6 49 71 191 98 25 . Launcher 78 | . 3 10 . . 7 9 . . . 2 . . . . . 2 . . 5 . . . 11 . . . . 12 1 . 2 2 4 2 6 . Special 24 | . . . . . . . . . 2 1 . . . . 2 . . . . . . . . . . . . . . 8 2 4 2 2 . 1 Kinetic 1493 | . 42 20 10 8 57 83 10 56 . 25 . 30 39 90 111 2 22 3 43 . 19 . 35 18 4 18 . 51 161 1 15 153 180 163 24 . Thermal 1361 | . . . 5 . 36 41 28 25 . 7 10 43 53 85 2 47 48 40 112 . 25 . 41 17 20 114 . 20 63 3 49 73 160 167 27 . Explosive 73 | . 3 10 . . 7 9 . . . 2 . . . . . 2 . . . . . . 11 . . . . 12 1 . 2 2 4 2 6 . Electromagnetic 735 | 21 48 36 5 5 68 45 . . . . . . . . . . . . 5 . 29 . . 8 24 65 1 5 23 3 9 76 53 199 7 . Entropic 3 | . . . . . . . . . . . . . . . . . . . . . . . . . . . . . 3 . . . . . . . Robot Hit Streak 32 | 7 8 7 2 3 24 13 5 25 . 4 4 7 12 23 1 12 13 9 18 . 5 . 10 8 3 8 . 8 18 11 23 24 12 32 25 . Robot Miss Streak 10 | 2 4 8 4 2 5 6 3 2 . 10 1 3 4 5 1 3 3 2 6 . 3 . 2 1 3 6 . 3 6 . 1 5 5 9 1 . Penetration Max 2 | . . . . . . . . . . . . 1 . . . . . . . . . . 1 1 . . . 1 1 . 1 1 1 2 1 . Secondary Targets 18 | . . . . . . . . . . . . 1 . . . . . 2 1 . 3 . . . . . . 1 4 . . . . 6 . . Max Gunslinging Chain 2 | . . . . . . . . . . . . 1 . . . . . 1 1 . 2 . . . . . . 1 1 . . . . 1 . . Shots Hit Robots 1976 | 15 51 35 10 6 104 100 17 52 . 17 8 35 56 88 1 24 21 28 49 . 39 . 62 23 23 27 22 44 169 8 18 175 216 377 56 . Core Hits 875 | 7 20 49 3 4 58 50 7 8 . 4 3 14 28 37 . 11 10 10 15 . 18 . 16 13 8 9 6 41 79 . 8 72 73 160 28 6 Critical Hits 38 | . . 1 . 1 . 1 . . . . . 1 . 1 . . 2 3 1 . . . . . . . . . 11 . . 4 6 3 3 . Critical Kills 17 | . . 1 . 1 . . . . . . . 1 . 1 . . . 2 . . . . . . . . . . 4 . . 2 2 2 1 . Critical Parts Destroyed 20 | . . . . . . 1 . . . . . . . . . . 2 1 1 . . . . . . . . . 7 . . 2 3 1 2 . Melee Attacks 32 | . . . 4 . . . . . . 6 . . . . . . . . . . . . . . . . 22 . . . . . . . . . Impact 6 | . . . . . . . . . . 6 . . . . . . . . . . . . . . . . . . . . . . . . . . Slashing 22 | . . . . . . . . . . . . . . . . . . . . . . . . . . . 22 . . . . . . . . . Piercing . | . . . . . . . . . . . . . . . . . . . . . . . . . . . . . . . . . . . . . Sneak Attacks 4 | . . . 4 . . . . . . . . . . . . . . . . . . . . . . . . . . . . . . . . . Combat Hostiles . | . . . . . . . . . . . . . . . . . . . . . . . . . . . . . . . . . . . . . Follow-up Attacks . | . . . . . . . . . . . . . . . . . . . . . . . . . . . . . . . . . . . . . Damage Inflicted 60510 | 308 860 2564 121 105 2644 2631 330 468 . 542 220 1313 1502 1521 16 747 682 721 1012 . 1032 . 3071 745 517 657 377 2459 6006 . 400 6290 7124 10860 2639 26 Guns 32263 | 208 666 151 94 43 754 1210 274 409 . 212 220 890 289 1521 16 492 616 721 896 . 956 . 1462 562 496 607 . 862 2924 . 271 3447 2585 7627 782 . Cannons 16470 | . . 879 27 62 1020 760 56 59 . 43 . 331 1213 . . . 66 . . . . . 154 91 . . . 223 2911 . 129 1510 3834 2159 943 . Explosions 11087 | 100 194 1534 . . 870 661 . . . 48 . 92 . . . 255 . . 116 . 76 . 1455 92 21 50 . 1374 169 . . 1333 705 1066 876 . Melee 616 | . . . . . . . . . . 239 . . . . . . . . . . . . . . . . 377 . . . . . . . . . Ramming 74 | . . . . . . . . . . . . . . . . . . . . . . . . . . . . . 2 . . . . 8 38 26 Kinetic 18207 | . 254 136 73 43 421 711 56 133 . 198 . 673 289 663 . . 199 25 481 . 182 . 804 243 20 53 . 621 3504 . 130 1881 2404 3307 703 . Thermal 21566 | 100 46 271 21 . 450 685 274 335 . 57 220 548 1213 858 16 492 483 696 415 . 374 . 812 233 284 208 . 543 1429 . 129 1953 4019 3381 1021 . Explosive 9232 | . 148 1263 . . 753 617 . . . 48 . 92 . . . 255 . . . . . . 1455 . . . . 1159 169 . . 1071 362 1000 840 . Electromagnetic 10543 | 208 412 894 27 62 1020 618 . . . . . . . . . . . . 116 . 476 . . 269 213 396 . 136 630 . 141 1385 339 3164 37 . Impact 239 | . . . . . . . . . . 239 . . . . . . . . . . . . . . . . . . . . . . . . . . Slashing 377 | . . . . . . . . . . . . . . . . . . . . . . . . . . . 377 . . . . . . . . . Piercing . | . . . . . . . . . . . . . . . . . . . . . . . . . . . . . . . . . . . . . Entropic 272 | . . . . . . . . . . . . . . . . . . . . . . . . . . . . . 272 . . . . . . . Highest Corruption 27 | . . . 1 1 . 9 9 9 . . . 1 1 1 . . 1 . 2 . . . . 4 3 . . 1 18 18 18 . 25 27 . . Average Corruption 8 | . . . 1 1 . 5 9 6 . . . 1 1 1 . . 1 . 1 . . . . 3 1 . . 1 9 18 7 . 14 22 . . Corruption Purged 48 | . . . . . . . . 9 . . . . 1 2 . . 1 . 2 . . . . 1 3 . . 1 1 . 16 . 4 7 . . Effects 670 | . . . . 2 . 33 70 52 . . . 2 . . . . . . 1 . . . . 3 5 . . 3 32 8 103 . 102 254 . . Message Errors 108 | . . . . . . 3 16 15 . . . 1 . . . . . . . . . . . 1 2 . . 2 6 . 35 . 10 17 . . Matter Fused 99 | . . . . . . 10 20 9 . . . . . . . . . . . . . . . . . . . . 4 . 20 . 14 22 . . Heat Flow Errors 52 | . . . . . . 3 5 8 . . . . . . . . . . . . . . . 1 . . . . 1 1 15 . 7 11 . . Energy Discharges 52 | . . . . 1 . 3 9 5 . . . . . . . . . . 1 . . . . 1 2 . . 1 1 . 12 . 9 7 . . Parts Rejected 7 | . . . . . . 1 . . . . . . . . . . . . . . . . . . . . . . 1 . . . 1 4 . . Data Loss (minor) 40 | . . . . 1 . 4 7 6 . . . 1 . . . . . . . . . . . . 1 . . . 1 . 9 . . 10 . . Data Loss (major) 16 | . . . . . . 1 1 2 . . . . . . . . . . . . . . . . . . . . . 1 6 . 3 2 . . Misfires 17 | . . . . . . 2 5 2 . . . . . . . . . . . . . . . . . . . . 2 1 2 . . 3 . . Alerts 8 | . . . . . . . . . . . . . . . . . . . . . . . . . . . . . 1 1 2 . 1 3 . . Misdirections 33 | . . . . . . . . . . . . . . . . . . . . . . . . . . . . . 1 1 . . 6 25 . . Targeting Errors 202 | . . . . . . 5 7 5 . . . . . . . . . . . . . . . . . . . . 13 3 2 . 45 122 . . Weapon Failures 36 | . . . . . . 1 . . . . . . . . . . . . . . . . . . . . . . 1 . . . 6 28 . . Overload Shots . | . . . . . . . . . . . . . . . . . . . . . . . . . . . . . . . . . . . . . Overflow Damage 1458 | . . 238 . 2 115 43 19 . . 47 . 16 193 . . . . . 22 . . . . . . . 2 242 135 . . 90 109 52 133 . Projectiles 731 | . . 124 . 2 37 16 19 . . . . 16 193 . . . . . . . . . . . . . . 67 135 . . . 84 23 15 . Explosions 678 | . . 114 . . 78 27 . . . . . . . . . . . . 22 . . . . . . . . 175 . . . 90 25 29 118 . Melee 49 | . . . . . . . . . . 47 . . . . . . . . . . . . . . . . 2 . . . . . . . . . Knockbacks 36 | . . . . . . 1 . . . 1 . . . . . . . . . . . . . 1 . . . 2 8 . . . 13 9 . 1 Impact 2 | . . . . . . . . . . 1 . . . . . . . . . . . . . . . . . . . . . . . . . 1 Kinetic 33 | . . . . . . 1 . . . . . . . . . . . . . . . . . 1 . . . 2 8 . . . 13 8 . . Secondary 1 | . . . . . . . . . . . . . . . . . . . . . . . . . . . . . . . . . . 1 . . Self-Inflicted Damage 1473 | 20 49 97 . . 214 71 . . . . . . . . . . . . 132 . . . . . . . . 102 6 . . 234 91 94 363 . Shots 31 | 1 1 3 . . 5 2 . . . . . . . . . . . . 5 . . . . . . . . 3 1 . . 2 2 1 5 . Rammed 19 | . . . . . . . . . . . . . . . . . . . . . . . . . . . . . . . . . . . 4 15 Targets Rammed 23 | . . . . . . . . . . . . . . . . . . . . . . . . . . . . . 2 . . . . 1 5 15 Kicked 3 | . . . . . . . . . . . . . . . . . . . . . . . . . . . . . 2 . . . . 1 . . Crushed 1 | . . . . . . . . . . . . . . . . . . . . . . . . . . . . . . . . . . . 1 . Highest Temperature 392 | 12 60 128 152 42 99 392 211 256 . 276 127 326 196 110 . 6 186 120 8 . . . . 126 . . . 12 212 125 320 304 372 381 9 . Average Temperature 70 | 12 25 49 49 20 20 106 66 67 . 161 58 88 41 38 . 4 56 41 6 . . . . 102 . . . 12 64 15 71 93 87 87 6 . Received Heat Transfer 3328 | . 132 87 . . 135 423 . . . 333 . 273 81 63 . . . . 18 . . . . 12 . 33 . 620 463 . 12 40 9 342 252 . Effects 5 | . . . . . . 1 . . . . . . . . . . . . . . . . . . . . . . . . . 2 . 2 . . Shutdowns 1 | . . . . . . . . . . . . . . . . . . . . . . . . . . . . . . . . . . 1 . . Interference 2 | . . . . . . . . . . . . . . . . . . . . . . . . . . . . . . . . 2 . . . . Matter Decay 1 | . . . . . . 1 . . . . . . . . . . . . . . . . . . . . . . . . . . . . . . Damage (minor) 1 | . . . . . . . . . . . . . . . . . . . . . . . . . . . . . . . . . . 1 . . Siege Activations 1 | . . . . . . . . . . . . . . . . . . . . . . . . . . . . . . . 1 . . . . . Total Turns 2024 | . . . . . . . . . . . . . . . . . . . . . . . . . . . . . . . 2024 . . . . . Longest Duration 2024 | . . . . . . . . . . . . . . . . . . . . . . . . . . . . . . . 2024 . . . . . Robots Corrupted 18 | . . . . . . 1 . . . . . . . . . . . . 1 . 1 . . 2 . 1 . 1 3 . . 1 1 6 . . Combat Hostiles 11 | . . . . . . . . . . . . . . . . . . . 1 . . . . . . . . 1 1 . . 1 1 6 . . Parts Fried 76 | 3 1 1 . . 3 6 . . . . . . . 1 . . . 1 6 . 1 . . 5 . 4 . . 5 . . 9 7 23 . . Impact Corruptions 3 | . . . . . . . . . . 3 . . . . . . . . . . . . . . . . . . . . . . . . . . Robots Melted 2 | . . . . . . . . 1 . . . . . . . . . . . . . . . . . . . . 1 . . . . . . . Combat Hostiles 1 | . . . . . . . . . . . . . . . . . . . . . . . . . . . . . 1 . . . . . . . Parts Melted 39 | . . . . . . 3 . . . . . 1 2 2 . . 2 5 . . 1 . 1 . 1 3 . 1 4 . . 2 2 9 . . Heat Transferred 28388 | 150 50 400 37 . 890 1294 592 740 . 27 333 703 1480 1832 37 1007 629 1025 670 . 650 . 1398 450 550 400 . 881 1799 . 111 1889 3282 4194 888 . Parts Sabotaged . | . . . . . . . . . . . . . . . . . . . . . . . . . . . . . . . . . . . . . Parts Stolen 5 | . . . . . . . 3 . . . . . . . . . . . . . . . . . . 2 . . . . . . . . . . Parts Stripped . | . . . . . . . . . . . . . . . . . . . . . . . . . . . . . . . . . . . . . Power Chain Reactions 21 | 3 1 3 . . 3 2 . . . . . . . . . . . . . . 2 . . . 1 1 . . . . . 1 2 1 1 . Missiles Intercepted . | . . . . . . . . . . . . . . . . . . . . . . . . . . . . . . . . . . . . . Alert | -11 -10 -10 -10 -9 -8 -7 -7 -7 -7 -7 -6 -6 -6 -6 -6 -5 -5 -5 -5 -5 -4 -4 -4 -4 -4 -4 -4 -3 -3 -3 -3 -2 -2 -2 -1 -1 ------- Run | Scr Mat Min Exi Min Mat Fac Low Low Zio Dee Pro Fac Low Low Dat Pro Fac Upp Upp War Pro Fac Was Fac Upp Upp Zhi Pro Res Arm Lab Res Qua Sec Acc Com Peak Influence 1468 | 30 263 276 . 185 670 164 . . . . . 222 . . . . 167 . . . . . 86 853 . . . . 399 262 . 351 571 1468 953 662 Initial 782 | . 19 51 . . 1 . . . . . . . . . . . . . . . . . . . . . . . . 149 . . 168 321 782 592 Average 263 | 13 118 108 . 31 218 79 . . . . . 66 . . . . 58 . . . . . 46 425 . . . . 142 237 . 171 237 786 809 592 Maximum Alert Level 4 | . 1 1 . . 2 . . . . . . 1 . . . . . . . . . . . 3 . . . . 1 1 . 1 2 4 3 2 Low Security (%) 57 | 100 74 80 . 100 46 100 . . . . . 97 . . . . 100 . . . . 100 100 10 . . . . 69 13 . 45 58 . . . Level 1 17 | . 25 19 . . 26 . . . . . . 2 . . . . . . . . . . . 13 . . . . 30 86 . 54 16 16 . . Level 2 14 | . . . . . 27 . . . . . . . . . . . . . . . . . . 68 . . . . . . . . 24 29 5 100 Level 3 7 | . . . . . . . . . . . . . . . . . . . . . . . . 6 . . . . . . . . . 26 94 . Level 4 3 | . . . . . . . . . . . . . . . . . . . . . . . . . . . . . . . . . . 27 . . Level 5 . | . . . . . . . . . . . . . . . . . . . . . . . . . . . . . . . . . . . . . High Security . | . . . . . . . . . . . . . . . . . . . . . . . . . . . . . . . . . . . . . Max Security . | . . . . . . . . . . . . . . . . . . . . . . . . . . . . . . . . . . . . . Squads Dispatched 80 | . 1 . . . 4 5 . . . . . 3 . 1 . . 3 . . . . . . 6 . . . . 8 . . 6 13 24 4 2 Investigation 10 | . 1 . . . 4 1 . . . . . 1 . . . . 1 . . . . . . 1 . . . . . . . . . 1 . . Extermination 19 | . . . . . . 2 . . . . . 1 . . . . 1 . . . . . . 1 . . . . 3 . . . 5 4 2 . Reinforcement 23 | . . . . . . 1 . . . . . 1 . . . . 1 . . . . . . 1 . . . . 5 . . 3 1 7 1 2 Assault 5 | . . . . . . . . . . . . . . 1 . . . . . . . . . . . . . . . . . . . 3 1 . Garrison 6 | . . . . . . 1 . . . . . . . . . . . . . . . . . 3 . . . . . . . . . 2 . . Intercept 17 | . . . . . . . . . . . . . . . . . . . . . . . . . . . . . . . . 3 7 7 . . Construction Impeded 8 | . . . . . . . . . . . . 1 . . . . . . . . . . . 1 . . . . 3 . . . 1 2 . . Haulers Reinforced 3 | . . . . . . 1 . . . . . . . . . . . . . . . . . . . . . . 1 . . 1 . . . . Stealth | -11 -10 -10 -10 -9 -8 -7 -7 -7 -7 -7 -6 -6 -6 -6 -6 -5 -5 -5 -5 -5 -4 -4 -4 -4 -4 -4 -4 -3 -3 -3 -3 -2 -2 -2 -1 -1 --------- Run | Scr Mat Min Exi Min Mat Fac Low Low Zio Dee Pro Fac Low Low Dat Pro Fac Upp Upp War Pro Fac Was Fac Upp Upp Zhi Pro Res Arm Lab Res Qua Sec Acc Com Distress Signals 21 | . 1 . . 1 1 1 . . . . . . . 1 . . . . . 1 . . . . . . . . 2 . . 4 . 6 2 1 Communications Jammed . | . . . . . . . . . . . . . . . . . . . . . . . . . . . . . . . . . . . . . Distress Signals . | . . . . . . . . . . . . . . . . . . . . . . . . . . . . . . . . . . . . . Times Spotted 479 | . 19 10 4 7 35 23 7 16 . 3 . 6 8 21 . 3 7 4 5 . 6 . 7 12 2 10 1 19 32 . 4 52 30 75 25 26 Peak Tracking Total 20 | . 4 3 2 3 5 5 3 5 . 2 . 4 4 5 . 4 2 4 3 . 4 . 3 4 1 4 2 12 6 . 3 9 6 10 7 20 Tactical Retreats 35 | . 1 . . . 1 1 . 9 . . . 1 5 6 . . . 1 . . . . . . . . . 1 . . . 2 . 5 1 1 Traps | -11 -10 -10 -10 -9 -8 -7 -7 -7 -7 -7 -6 -6 -6 -6 -6 -5 -5 -5 -5 -5 -4 -4 -4 -4 -4 -4 -4 -3 -3 -3 -3 -2 -2 -2 -1 -1 ------- Run | Scr Mat Min Exi Min Mat Fac Low Low Zio Dee Pro Fac Low Low Dat Pro Fac Upp Upp War Pro Fac Was Fac Upp Upp Zhi Pro Res Arm Lab Res Qua Sec Acc Com Traps Triggered 9 | . . . . . 2 . . . . . . . . 2 . . . . . . . 1 . 1 . 1 . . 1 . . . 1 . . . Indirectly . | . . . . . . . . . . . . . . . . . . . . . . . . . . . . . . . . . . . . . Trap Hack Attempts . | . . . . . . . . . . . . . . . . . . . . . . . . . . . . . . . . . . . . . Triggered . | . . . . . . . . . . . . . . . . . . . . . . . . . . . . . . . . . . . . . Disarmed . | . . . . . . . . . . . . . . . . . . . . . . . . . . . . . . . . . . . . . Reprogrammed 4 | . . . . . 4 . . . . . . . . . . . . . . . . . . . . . . . . . . . . . . . Reused 26 | . . . . . . . . 1 . . . . 5 8 1 . . 1 1 . 7 . . . . 1 . 1 . . . . . . . . Traps Extracted 33 | . . . . . . . . . . . . . . . . . . 33 . . . . . . . . . . . . . . . . . . Installed 105 | . . . . . . . . 1 . 4 1 . 12 15 5 3 . 35 4 . 18 . . . . 3 . 2 1 . 1 . . . . . Triggered 43 | . . . . . . . . 1 . . . . 5 7 . 1 . 1 1 13 8 . . . 4 1 . 1 . . . . . . . . Fabricated Traps 67 | . . . . . . . . . . 4 1 . 6 8 5 . . 3 12 . 10 . . . . 9 . 9 . . . . . . . . Machines | -11 -10 -10 -10 -9 -8 -7 -7 -7 -7 -7 -6 -6 -6 -6 -6 -5 -5 -5 -5 -5 -4 -4 -4 -4 -4 -4 -4 -3 -3 -3 -3 -2 -2 -2 -1 -1 ---------- Run | Scr Mat Min Exi Min Mat Fac Low Low Zio Dee Pro Fac Low Low Dat Pro Fac Upp Upp War Pro Fac Was Fac Upp Upp Zhi Pro Res Arm Lab Res Qua Sec Acc Com Machines Disabled 100 | . 3 1 3 . 10 1 . 1 . 2 . 7 . 1 . . 2 . 2 . 1 . . 5 . . 1 3 1 5 19 6 10 14 1 1 Max in Single Turn 3 | . 1 1 2 . 2 1 . 1 . 1 . 2 . 1 . . 2 . 1 . 1 . . 2 . . 1 2 1 3 1 2 1 2 1 . Garrison Access 4 | . . . . . 1 1 . . . . . 1 . . . . . . . . . . . . . . . . . . . 1 . . . . Machines Sabotaged . | . . . . . . . . . . . . . . . . . . . . . . . . . . . . . . . . . . . . . Garrisons Compromised . | . . . . . . . . . . . . . . . . . . . . . . . . . . . . . . . . . . . . . Overloaded Fab Kills . | . . . . . . . . . . . . . . . . . . . . . . . . . . . . . . . . . . . . . Fab Network Shutdowns . | . . . . . . . . . . . . . . . . . . . . . . . . . . . . . . . . . . . . . Hacking | -11 -10 -10 -10 -9 -8 -7 -7 -7 -7 -7 -6 -6 -6 -6 -6 -5 -5 -5 -5 -5 -4 -4 -4 -4 -4 -4 -4 -3 -3 -3 -3 -2 -2 -2 -1 -1 --------- Run | Scr Mat Min Exi Min Mat Fac Low Low Zio Dee Pro Fac Low Low Dat Pro Fac Upp Upp War Pro Fac Was Fac Upp Upp Zhi Pro Res Arm Lab Res Qua Sec Acc Com Machines Accessed 103 | . 4 2 1 . 14 11 1 1 1 . . 10 . . 3 . 2 1 3 3 1 . . 3 1 1 4 . 3 . 2 2 6 13 7 3 Terminals 52 | . 4 . . . 10 6 . . . . . 4 . . . . . . . . . . . 2 1 . . . 1 . . . 5 11 5 3 Fabricators 6 | . . . . . . 2 . . . . . 2 . . . . 1 . . . . . . . . . . . 1 . . . . . . . Repair Stations . | . . . . . . . . . . . . . . . . . . . . . . . . . . . . . . . . . . . . . Recycling Units 4 | . . . . . 2 1 . . . . . 1 . . . . . . . . . . . . . . . . . . . . . . . . Scanalyzers 6 | . . . . . 1 . . . . . . 1 . . . . 1 . . . . . . . . . . . 1 . . 1 . 1 . . Garrison Access 11 | . . . . . 1 2 . . . . . 2 . . . . . . . . . . . 1 . . . . . . . 1 1 1 2 . Total Hacks 319 | . 17 2 1 . 75 35 1 5 5 . . 23 . . 23 . 9 1 4 7 1 . . 6 1 1 13 . 5 . 21 4 22 21 13 3 Successful 210 | . 11 2 1 . 55 17 1 5 5 . . 9 . . 23 . 6 1 4 7 1 . . 3 1 1 13 . 1 . 21 3 5 10 4 . Failed 109 | . 6 . . . 20 18 . . . . . 14 . . . . 3 . . . . . . 3 . . . . 4 . . 1 17 11 9 3 Catastrophic 24 | . . . . . 5 2 . . . . . 2 . . . . . . . . . . . 1 . . . . . . . 1 3 5 2 3 Database Lockouts . | . . . . . . . . . . . . . . . . . . . . . . . . . . . . . . . . . . . . . Manual 122 | . 11 . 1 . 45 17 . 1 . . . 13 . . . . 4 3 . 2 . . . 4 . . . . 1 . . . 10 6 2 2 Terminals 151 | . 17 . . . 48 21 . . . . . 9 . . . . . . . . . . . 4 1 . . . 1 . . . 20 17 10 3 Fabricators 18 | . . . . . . 5 . . . . . 6 . . . . 6 . . . . . . . . . . . 1 . . . . . . . Repair Stations . | . . . . . . . . . . . . . . . . . . . . . . . . . . . . . . . . . . . . . Recycling Units 14 | . . . . . 6 4 . . . . . 4 . . . . . . . . . . . . . . . . . . . . . . . . Scanalyzers 33 | . . . . . 20 . . . . . . 1 . . . . 3 . . . . . . . . . . . 3 . . 3 . 3 . . Garrison Access 18 | . . . . . 1 5 . . . . . 3 . . . . . . . . . . . 2 . . . . . . . 1 2 1 3 . Terminal Hacks 124 | . 6 2 1 . 14 4 1 5 5 . . 1 . . 23 . . 1 4 7 1 . . 1 1 1 13 . . . 21 . 3 6 3 . Record 41 | . . . . . . . . 5 . . . . . . 6 . . . 2 . 1 . . . 1 . 5 . . . 21 . . . . . Part Schematic 16 | . . . . . . 1 . . 5 . . . . . 6 . . . . . . . . . . . 4 . . . . . . . . . Robot Schematic 8 | . . . . . . . . . . . . . . . 8 . . . . . . . . . . . . . . . . . . . . . Robot Analysis 2 | . 2 . . . . . . . . . . . . . . . . . . . . . . . . . . . . . . . . . . . Prototype ID Bank 15 | . 1 . . . . 1 . . . . . . . . 3 . . . . 5 . . . . . . 4 . . . . . 1 . . . Open Door 17 | . . 2 . . . . 1 . . . . . . . . . . 1 2 2 . . . . . 1 . . . . . . . 5 3 . Level Access Points 2 | . . . . . 1 . . . . . . . . . . . . . . . . . . . . . . . . . . . . 1 . . Branch Access Points 4 | . 1 . . . . 1 . . . . . 1 . . . . . . . . . . . 1 . . . . . . . . . . . . Recycling Unit Index 1 | . . . . . 1 . . . . . . . . . . . . . . . . . . . . . . . . . . . . . . . Scanalyzer Index 1 | . . . . . 1 . . . . . . . . . . . . . . . . . . . . . . . . . . . . . . . Alert Level 1 | . . . . . 1 . . . . . . . . . . . . . . . . . . . . . . . . . . . . . . . Unreport Threat 9 | . 1 . . . 5 1 . . . . . . . . . . . . . . . . . . . . . . . . . . 2 . . . Reprogram Traps 1 | . . . . . 1 . . . . . . . . . . . . . . . . . . . . . . . . . . . . . . . Zone Layout 5 | . 1 . . . 4 . . . . . . . . . . . . . . . . . . . . . . . . . . . . . . . EX-Prototype ID Bank 1 | . . . 1 . . . . . . . . . . . . . . . . . . . . . . . . . . . . . . . . . Fabricator Hacks 9 | . . . . . . 4 . . . . . 3 . . . . 2 . . . . . . . . . . . . . . . . . . . Load Schematic 5 | . . . . . . 2 . . . . . 2 . . . . 1 . . . . . . . . . . . . . . . . . . . Build 4 | . . . . . . 2 . . . . . 1 . . . . 1 . . . . . . . . . . . . . . . . . . . Repair Station Hacks . | . . . . . . . . . . . . . . . . . . . . . . . . . . . . . . . . . . . . . Recycling Unit Hacks . | . . . . . . . . . . . . . . . . . . . . . . . . . . . . . . . . . . . . . Scanalyzer 25 | . . . . . 18 . . . . . . . . . . . 2 . . . . . . . . . . . 1 . . 2 . 2 . . Insert Component 14 | . . . . . 8 . . . . . . . . . . . 1 . . . . . . . . . . . 1 . . 2 . 2 . . Analyze 11 | . . . . . 10 . . . . . . . . . . . 1 . . . . . . . . . . . . . . . . . . . Garrison Access Hacks 4 | . . . . . 1 1 . . . . . 1 . . . . . . . . . . . . . . . . . . . 1 . . . . Seal Access 4 | . . . . . 1 1 . . . . . 1 . . . . . . . . . . . . . . . . . . . 1 . . . . Unauthorized Hacks 48 | . 5 . . . 22 8 . . . . . 4 . . . . 2 . . . . . . 2 . . . . . . . . 2 2 1 . Terminals 34 | . 5 . . . 16 4 . . . . . 2 . . . . . . . . . . . 2 . . . . . . . . 2 2 1 . Track 2 | . 1 . . . 1 . . . . . . . . . . . . . . . . . . . . . . . . . . . . . . . Assimilate 5 | . 1 . . . 3 1 . . . . . . . . . . . . . . . . . . . . . . . . . . . . . . Botnet 23 | . 2 . . . 9 3 . . . . . 2 . . . . . . . . . . . 2 . . . . . . . . 2 2 1 . Disrupt 2 | . . . . . 2 . . . . . . . . . . . . . . . . . . . . . . . . . . . . . . . Operators 2 | . 1 . . . 1 . . . . . . . . . . . . . . . . . . . . . . . . . . . . . . . Fabricators 1 | . . . . . . . . . . . . . . . . . 1 . . . . . . . . . . . . . . . . . . . Prioritize 1 | . . . . . . . . . . . . . . . . . 1 . . . . . . . . . . . . . . . . . . . Repair Stations . | . . . . . . . . . . . . . . . . . . . . . . . . . . . . . . . . . . . . . Recycling Units 11 | . . . . . 5 4 . . . . . 2 . . . . . . . . . . . . . . . . . . . . . . . . Monitor 2 | . . . . . 1 1 . . . . . . . . . . . . . . . . . . . . . . . . . . . . . . Reject 3 | . . . . . 1 1 . . . . . 1 . . . . . . . . . . . . . . . . . . . . . . . . Recyclers 4 | . . . . . 2 1 . . . . . 1 . . . . . . . . . . . . . . . . . . . . . . . . Mask 2 | . . . . . 1 1 . . . . . . . . . . . . . . . . . . . . . . . . . . . . . . Scanalyzers 2 | . . . . . 1 . . . . . . . . . . . 1 . . . . . . . . . . . . . . . . . . . Extract 2 | . . . . . 1 . . . . . . . . . . . 1 . . . . . . . . . . . . . . . . . . . Garrison Access . | . . . . . . . . . . . . . . . . . . . . . . . . . . . . . . . . . . . . . Data Cores Recovered . | . . . . . . . . . . . . . . . . . . . . . . . . . . . . . . . . . . . . . Used . | . . . . . . . . . . . . . . . . . . . . . . . . . . . . . . . . . . . . . Hacking Detections 68 | . 4 . . . 12 10 . . . . . 9 . . . . 2 . . . . . . 2 1 . . . 3 . . 1 6 11 5 2 Full Trace Events 6 | . . . . . 2 1 . . . . . 1 . . . . . . . . . . . 1 . . . . . . . . . 1 . . Feedback Events 1 | . . . . . . 1 . . . . . . . . . . . . . . . . . . . . . . . . . . . . . . Corruption 1 | . . . . . . 1 . . . . . . . . . . . . . . . . . . . . . . . . . . . . . . Feedback Blocked . | . . . . . . . . . . . . . . . . . . . . . . . . . . . . . . . . . . . . . Robot Schematics Acquired 8 | . . . . . . . . . . . . . . . 8 . . . . . . . . . . . . . . . . . . . . . Robots Built . | . . . . . . . . . . . . . . . . . . . . . . . . . . . . . . . . . . . . . Matter . | . . . . . . . . . . . . . . . . . . . . . . . . . . . . . . . . . . . . . Time . | . . . . . . . . . . . . . . . . . . . . . . . . . . . . . . . . . . . . . Total Robot Build Rating . | . . . . . . . . . . . . . . . . . . . . . . . . . . . . . . . . . . . . . Part Schematics Acquired 35 | . . . . . 12 1 . . 5 . . . . . 6 . 7 . . . . . . . . . 4 . . . . . . . . . Parts Built 6 | . . . . . . 3 . . . . . 2 . . . . 1 . . . . . . . . . . . . . . . . . . . Matter 745 | . . . . . . 314 . . . . . 146 . . . . 285 . . . . . . . . . . . . . . . . . . . Time 266 | . . . . . . 78 . . . . . 36 . . . . 152 . . . . . . . . . . . . . . . . . . . Total Part Build Rating 21 | . . . . . . 10 . . . . . 6 . . . . 5 . . . . . . . . . . . . . . . . . . . Parts Repaired . | . . . . . . . . . . . . . . . . . . . . . . . . . . . . . . . . . . . . . Time . | . . . . . . . . . . . . . . . . . . . . . . . . . . . . . . . . . . . . . Parts Recycled . | . . . . . . . . . . . . . . . . . . . . . . . . . . . . . . . . . . . . . Recycled Matter . | . . . . . . . . . . . . . . . . . . . . . . . . . . . . . . . . . . . . . Retrieved Matter . | . . . . . . . . . . . . . . . . . . . . . . . . . . . . . . . . . . . . . Retrieved Components . | . . . . . . . . . . . . . . . . . . . . . . . . . . . . . . . . . . . . . Parts Scanalyzed 10 | . . . . . 8 . . . . . . . . . . . 1 . . . . . . . . . . . . . . 1 . . . . Part Schematics Acquired 9 | . . . . . 8 . . . . . . . . . . . 1 . . . . . . . . . . . . . . . . . . . Parts Damaged . | . . . . . . . . . . . . . . . . . . . . . . . . . . . . . . . . . . . . . Bothacking | -11 -10 -10 -10 -9 -8 -7 -7 -7 -7 -7 -6 -6 -6 -6 -6 -5 -5 -5 -5 -5 -4 -4 -4 -4 -4 -4 -4 -3 -3 -3 -3 -2 -2 -2 -1 -1 ------------ Run | Scr Mat Min Exi Min Mat Fac Low Low Zio Dee Pro Fac Low Low Dat Pro Fac Upp Upp War Pro Fac Was Fac Upp Upp Zhi Pro Res Arm Lab Res Qua Sec Acc Com Used RIF Installer . | . . . . . . . . . . . . . . . . . . . . . . . . . . . . . . . . . . . . . Robots Hacked 14 | . . . 4 . . . . . . 1 . . . . 1 . . . . . . . . . . . . . . 1 1 4 . 1 . 1 Non-combat 5 | . . . 3 . . . . . . . . . . . . . . . . . . . . . . . . . . . . 2 . . . . Combat 8 | . . . 1 . . . . . . 1 . . . . 1 . . . . . . . . . . . . . . 1 1 2 . 1 . . Robot Hacks Applied 13 | . . . 4 . . . . . . 1 . . . . 1 . . . . . . . . . . . . . . 1 1 4 . 1 . . parse_system 12 | . . . 4 . . . . . . 1 . . . . 1 . . . . . . . . . . . . . . 1 1 3 . 1 . . no_distress 1 | . . . . . . . . . . . . . . . . . . . . . . . . . . . . . . . . 1 . . . . Manual 3 | . . . . . . . . . . . . . . . . . . . . . . . . . . . . . . . 1 . . 1 . 1 Relay Couplers Released 7 | . . . . . 3 4 . . . . . . . . . . . . . . . . . . . . . . . . . . . . . . Machine Destruction 3 | . . . . . 3 . . . . . . . . . . . . . . . . . . . . . . . . . . . . . . . Programmers 4 | . . . . . . 4 . . . . . . . . . . . . . . . . . . . . . . . . . . . . . . Robots Rewired 10 | . . . . . . . . . . . . . . . . . . . . 5 . . . . . . . . . 4 . . 1 . . . Allies Hacked 3 | . . . . . . 1 . . . . . . . . . . . . . . 1 . . . . . . . . . . . 1 . . . Hacks Repelled . | . . . . . . . . . . . . . . . . . . . . . . . . . . . . . . . . . . . . . Allies | -11 -10 -10 -10 -9 -8 -7 -7 -7 -7 -7 -6 -6 -6 -6 -6 -5 -5 -5 -5 -5 -4 -4 -4 -4 -4 -4 -4 -3 -3 -3 -3 -2 -2 -2 -1 -1 -------- Run | Scr Mat Min Exi Min Mat Fac Low Low Zio Dee Pro Fac Low Low Dat Pro Fac Upp Upp War Pro Fac Was Fac Upp Upp Zhi Pro Res Arm Lab Res Qua Sec Acc Com Total Allies 44 | . 1 2 . 3 2 1 . . 3 . . . . . . . . . . 5 . . 20 . . . . . . 4 . . 1 1 . 1 Largest Group 20 | . 1 2 2 3 3 2 . . 3 3 1 1 . . . . . . . 5 4 . 20 20 9 8 1 . . 4 3 . 1 1 . . Highest-Rated Group 742 | . 10 46 46 40 40 26 . . 79 79 31 31 . . . . . . . 232 172 . 742 742 409 359 44 . . 168 126 . 80 147 . . Highest-Rated Ally 147 | . 10 31 31 16 16 26 . . 31 31 31 31 . . . . . . . 60 49 . 50 50 50 50 44 . . 42 42 . 80 147 . . Total Orders 31 | . 2 7 . . 4 9 . . . . . . . . . . . . . 8 . . . . . . . . . . 1 . . . . . STAY 18 | . 1 4 . . 2 5 . . . . . . . . . . . . . 5 . . . . . . . . . . 1 . . . . . ROAM 1 | . . . . . . 1 . . . . . . . . . . . . . . . . . . . . . . . . . . . . . . FOLLOW 11 | . 1 3 . . 2 3 . . . . . . . . . . . . . 2 . . . . . . . . . . . . . . . . GUARD 1 | . . . . . . . . . . . . . . . . . . . . 1 . . . . . . . . . . . . . . . . Ally Attacks 396 | . . 2 . 10 31 . . . . 66 . 2 . . . . . . . . 22 . 27 106 14 42 6 . . . 6 . 10 50 . 2 Total Damage 8810 | . . 43 . 96 221 . . . . 811 . 20 . . . . . . . . 676 . 598 2634 373 902 113 . . . 257 . 374 1596 . 96 Kills 49 | . . 2 . 5 2 . . . . 7 . . . . . . . . . . 1 . 1 18 3 5 . . . . . . . 5 . . Allies Corrupted 6 | . . . . . . . . . . . . . . . . . . . . . . . . 2 . . . . . . 3 . 1 . . . Allies Melted . | . . . . . . . . . . . . . . . . . . . . . . . . . . . . . . . . . . . . . Intel | -11 -10 -10 -10 -9 -8 -7 -7 -7 -7 -7 -6 -6 -6 -6 -6 -5 -5 -5 -5 -5 -4 -4 -4 -4 -4 -4 -4 -3 -3 -3 -3 -2 -2 -2 -1 -1 ------- Run | Scr Mat Min Exi Min Mat Fac Low Low Zio Dee Pro Fac Low Low Dat Pro Fac Upp Upp War Pro Fac Was Fac Upp Upp Zhi Pro Res Arm Lab Res Qua Sec Acc Com Robot Analysis Total 117 | . 2 . . . . . . . . . . . . . 115 . . . . . . . . . . . . . . . . . . . . . Derelict Logs Recovered 21 | . . 1 . 2 . . . 1 2 . . . 3 1 . 3 . 2 2 . 2 . . . 1 1 . . . . . . . . . . Drone Launches 21 | . . 20 . . . . . . . . . . . . . . . . . 1 . . . . . . . . . . . . . . . . Drone Recoveries . | . . . . . . . . . . . . . . . . . . . . . . . . . . . . . . . . . . . . . Exploration | -11 -10 -10 -10 -9 -8 -7 -7 -7 -7 -7 -6 -6 -6 -6 -6 -5 -5 -5 -5 -5 -4 -4 -4 -4 -4 -4 -4 -3 -3 -3 -3 -2 -2 -2 -1 -1 ------------- Run | Scr Mat Min Exi Min Mat Fac Low Low Zio Dee Pro Fac Low Low Dat Pro Fac Upp Upp War Pro Fac Was Fac Upp Upp Zhi Pro Res Arm Lab Res Qua Sec Acc Com Turns Passed 62653 | 92 494 1095 635 689 2698 1537 1845 4543 1286 1911 896 987 4238 4938 1006 2155 409 2571 3417 1028 4634 18 505 412 1659 2198 491 4061 833 116 3740 1243 1539 1771 754 209 Spaces Moved 36930 | 39 281 749 477 536 1882 932 1141 2523 978 1112 498 570 2629 3027 435 1485 203 1777 2159 790 3226 15 289 304 1292 1405 317 1844 336 40 698 738 807 921 293 182 Core 36 | . . . . . . 6 . . . 14 . . . . . . . . . . . . . . . . . . . . . . . . 15 1 Treads 854 | . . . . . . . . . . . . . . . . . . . . . . . . . . . . . 22 40 628 . . . 92 72 Legs 35076 | 39 194 749 477 536 1882 379 946 2523 978 1098 498 570 2629 3027 435 1485 203 1777 2159 790 3226 15 289 304 1292 1405 317 1844 314 . 70 738 807 921 160 . Wheels 835 | . 87 . . . . 535 195 . . . . . . . . . . . . . . . . . . . . . . . . . . . 18 . Hover 117 | . . . . . . . . . . . . . . . . . . . . . . . . . . . . . . . . . . . 8 109 Flight 12 | . . . . . . 12 . . . . . . . . . . . . . . . . . . . . . . . . . . . . . . Fastest Speed 36 | 120 95 120 120 120 120 90 100 123 123 120 150 122 127 127 127 127 120 120 120 112 112 112 112 112 112 112 112 112 112 165 150 105 104 110 130 36 Average Speed 125 | 120 112 121 120 120 122 121 142 127 123 145 150 127 130 127 127 127 126 120 120 116 112 112 119 112 112 114 119 137 139 165 172 116 110 117 183 88 Slowest Speed 1200 | 120 120 150 120 120 150 680 180 153 153 450 150 156 160 157 127 127 150 120 150 120 144 112 144 144 112 150 144 144 180 165 300 150 140 220 1200 160 Overloaded Moves . | . . . . . . . . . . . . . . . . . . . . . . . . . . . . . . . . . . . . . Propulsion Burnouts . | . . . . . . . . . . . . . . . . . . . . . . . . . . . . . . . . . . . . . Robots Hopped . | . . . . . . . . . . . . . . . . . . . . . . . . . . . . . . . . . . . . . Cave-ins Triggered . | . . . . . . . . . . . . . . . . . . . . . . . . . . . . . . . . . . . . . Teleports 3 | . . . . . . . . . . . . . . . . . . . . . . . . . . . . . . 1 . . . 1 1 . Exploration Rate (%) 64 | 4 44 99 71 98 97 18 97 96 85 78 58 19 98 95 100 92 10 93 97 91 98 1 95 11 95 88 70 91 12 4 99 19 82 52 9 16 Regions Visited 36 Branch Regions 25 Pre-discovered Areas 38 | . . . . . . . . 2 2 . . . 1 1 25 1 . 1 1 . . . . . . 1 3 . . . . . . . . . Known Exits Taken 31 | . 1 1 . . 1 1 1 1 1 1 1 1 1 1 1 1 1 1 1 1 1 . . 1 1 1 1 1 1 1 1 1 1 1 1 . Unknown Exits Taken 3 | 1 . . 1 1 . . . . . . . . . . . . . . . . . . . . . . . . . . . . . . . . Scrap Searched 44 | . . 1 . 2 . . 1 7 2 . 4 . 5 2 . 3 . 2 4 . 3 . . . 2 1 . 5 . . . . . . . . Spaces Dug 119 | . . . . . 1 1 2 4 . . . 19 1 9 . 3 5 5 3 . 5 . 7 3 . . . 2 8 1 13 5 11 10 1 . Terrain Destroyed 1166 | 5 10 65 . . 71 41 4 5 . 40 . 59 18 14 6 25 49 6 10 . 15 . 124 3 3 . . 111 39 18 27 100 167 71 60 . Melee . | . . . . . . . . . . . . . . . . . . . . . . . . . . . . . . . . . . . . . Projectile 379 | . . . . . 1 5 4 5 . 1 . 22 18 14 6 4 9 6 10 . 6 . 11 3 . . . 8 23 1 5 44 96 71 6 . AOE 787 | 5 10 65 . . 70 36 . . . 39 . 37 . . . 21 40 . . . 9 . 113 . 3 . . 103 16 17 22 56 71 . 54 . Terrain Rammed . | . . . . . . . . . . . . . . . . . . . . . . . . . . . . . . . . . . . . . Walls Destroyed . | . . . . . . . . . . . . . . . . . . . . . . . . . . . . . . . . . . . . . Machines Disabled . | . . . . . . . . . . . . . . . . . . . . . . . . . . . . . . . . . . . . . Actions | -11 -10 -10 -10 -9 -8 -7 -7 -7 -7 -7 -6 -6 -6 -6 -6 -5 -5 -5 -5 -5 -4 -4 -4 -4 -4 -4 -4 -3 -3 -3 -3 -2 -2 -2 -1 -1 --------- Run | Scr Mat Min Exi Min Mat Fac Low Low Zio Dee Pro Fac Low Low Dat Pro Fac Upp Upp War Pro Fac Was Fac Upp Upp Zhi Pro Res Arm Lab Res Qua Sec Acc Com Total 50450 | 64 372 868 514 569 2134 1189 1323 3774 1058 1365 638 762 3358 3965 775 1701 305 2172 2824 896 4182 17 389 345 1464 1849 389 3297 524 82 3173 945 1197 1295 449 227 Wait 9554 | . 10 38 14 24 111 87 117 1119 51 177 116 74 549 635 246 136 38 248 489 25 789 1 65 14 145 325 16 1342 25 21 2317 21 119 18 31 1 Move 36895 | 38 280 748 476 535 1881 931 1140 2522 977 1111 497 569 2628 3026 434 1484 202 1776 2158 789 3225 15 288 303 1291 1404 316 1843 335 39 697 737 806 920 292 182 Hop . | . . . . . . . . . . . . . . . . . . . . . . . . . . . . . . . . . . . . . Pick Up 564 | 2 10 6 3 1 15 30 18 14 10 16 3 12 25 45 2 8 10 23 16 7 30 . 1 3 . 12 10 19 25 1 31 28 44 63 17 4 Fast Attach 150 | . 3 4 . . 9 6 . 7 . . 2 15 6 6 . . 4 2 4 8 5 . . 1 . 3 2 4 6 . 9 8 16 18 2 . Attach 309 | 1 . 1 1 . 4 25 8 2 6 11 3 3 6 12 3 1 3 4 8 2 2 1 2 1 . 8 3 13 20 . 15 11 36 49 34 10 Detach 33 | . 1 . . . . 1 . 2 . 1 . . 1 . . . . . . . . . 1 . . 2 . . . . 2 1 2 4 9 6 Swap 513 | . 8 9 4 . 17 14 3 6 2 8 1 22 25 45 4 14 13 35 33 5 28 . 7 5 4 11 2 23 20 6 16 40 35 47 1 . Drop 563 | 2 12 11 2 1 21 13 5 22 10 13 5 24 36 54 3 8 10 28 21 16 38 . . 3 . 16 17 22 8 1 26 30 25 48 4 8 Fire 1658 | 21 48 51 10 8 76 82 32 79 2 18 10 43 70 127 78 47 25 21 91 . 46 . 25 15 24 65 1 29 82 14 55 69 114 125 54 1 Melee 32 | . . . 4 . . . . . . 6 . . . . . . . . . . . . . . . . 22 . . . . . . . . . Ram 2 | . . . . . . . . . . . . . . . . . . . . . . . . . . . . . . . . . . 2 . . Kick 3 | . . . . . . . . . . . . . . . . . . . . . . . . . . . . . 2 . . . . 1 . . Crush 20 | . . . . . . . . . . . . . . . . . . . . . . . . . . . . . . . . . . . 5 15 Escape Stasis . | . . . . . . . . . . . . . . . . . . . . . . . . . . . . . . . . . . . . . Rewire 45 | . . . . . . . . . . . . . . . . . . . . 44 1 . . . . . . . . . . . . . . . Trap 109 | . . . . . . . . 1 . 4 1 . 12 15 5 3 . 35 4 . 18 . . . . 3 . 2 1 . 5 . . . . . Miscellaneous . | . . . . . . . . . . . . . . . . . . . . . . . . . . . . . . . . . . . . . Route ------- -11/Scrapyard -10/Materials (discovered 3 exits: [*Mat] / *Min x2) -10/Mines (discovered 3 exits: [*Mat x2] / *Exi) -10/Exiles -9/Mines (discovered 2 exits: *Mat x2) -8/Materials (discovered 3 exits: *Fac x3) -7/Factory (discovered 2 exits: *Low x2) -7/Lower Caves -7/Lower Caves (discovered 2 exits: *Fac / *Zio) -7/Zion (discovered 2 exits: *Dee / [Pro]) -7/Deep Caves -6/Proximity Caves -6/Factory (discovered 3 exits: *Fac / *Low x2) -6/Lower Caves -6/Lower Caves (discovered 2 exits: *Fac / *Dat) -6/Data Miner -5/Proximity Caves -5/Factory -5/Upper Caves (discovered 2 exits: *Upp / *War) -5/Upper Caves (discovered 2 exits: *Fac / *War) -5/Warlord -4/Proximity Caves -4/Factory -4/Waste -4/Factory (discovered 4 exits: *Upp x2 / Ext x2) -4/Upper Caves -4/Upper Caves (discovered 2 exits: *Res / *Zhi) -4/Zhirov -3/Proximity Caves -3/Research (discovered 3 exits: *Arm / Tes x2) -3/Armory -3/Lab -2/Research (discovered 2 exits: *Acc / *Qua) -2/Quarantine -2/Section 7 -1/Access -1/Command (discovered 1 exit: [*Sur]) History --------- Turn | Location | Event 11 | -11/Scrapyard | Discovered new exit (range 3) 93 | -11/Scrapyard | Entered Materials 93 | -10/Materials | Discovered new exit (range 7) 311 | -10/Materials | Build established: Mutant 321 | -10/Materials | Identified exit to Mines 415 | -10/Materials | Discovered new exit (range 16) 587 | -10/Materials | Entered Mines 587 | -10/Mines | Accompanied by 1 ally 601 | -10/Mines | Discovered new exit (range 7) 613 | -10/Mines | Met a Derelict bent on vengeance 784 | -10/Mines | Identified exit to Exiles 854 | -10/Mines | Met a Derelict who couldn't figure out how to use a Trap Extractor 893 | -10/Mines | Found the Drone Emporium 899 | -10/Mines | Found Prototype Device 899 | -10/Mines | Identified Sensor Drone Bay 1147 | -10/Mines | Deemed a non-threat by the Exiles lab entrance 1298 | -10/Mines | Discovered new exit (range 10) 1344 | -10/Mines | Core integrity fell below 50% 1628 | -10/Mines | Build established: Scavenger-Mutant 1682 | -10/Mines | Entered Exiles 1682 | -10/Exiles | Accompanied by 2 allies 1712 | -10/Exiles | Led the pair of lost Derelicts to a safe place 1713 | -10/Exiles | Met 8R-AWN 1733 | -10/Exiles | Met EX-HEX 1828 | -10/Exiles | Met EX-DEC 1969 | -10/Exiles | Build established: Mutant 1980 | -10/Exiles | Met EX-BIN 2002 | -10/Exiles | Aligned with FarCom system 2003 | -10/Exiles | Given EX-Vault access code 2030 | -10/Exiles | Opened EX-Vault 2036 | -10/Exiles | Found PSU Rigger 2042 | -10/Exiles | Found Latent Energy Streamer 2069 | -10/Exiles | Warned to stay clear of 0b10 Research branches 2083 | -10/Exiles | Exiles lab attacked by MAIN.C 2142 | -10/Exiles | Discovered new exit (range 12) 2296 | -10/Exiles | Build established: Scavenger-Mutant 2317 | -10/Exiles | Stole two prototypes: PSU Rigger, Latent Energy Streamer 2317 | -10/Exiles | Entered Mines 2424 | -9/Mines | Assisted by bots powering up and referring to "LRC-V3" 2600 | -9/Mines | A weapon hastily lodged in a ceiling crevice suddenly fell to the ground 2644 | -9/Mines | Discovered new exit (range 8) 2743 | -9/Mines | Received a Rocket Launcher from a helpful Derelict 2775 | -9/Mines | Learned Materials terminal intel 2818 | -9/Mines | Learned Materials stockpile data 2818 | -9/Mines | Discovered new exit (range 8) 3006 | -9/Mines | Entered Materials 3006 | -8/Materials | Accompanied by 3 allies 3006 | -8/Materials | Evolved 4 slots: Propulsion x1, Utility x2, Weapon x1 3008 | -8/Materials | Loaded intel: 12 terminal locations 3484 | -8/Materials | Identified exit to Factory 3647 | -8/Materials | Build established: Scavenger-Skirmisher 4482 | -8/Materials | Build established: Scavenger-Mutant 4957 | -8/Materials | Build established: Scavenger-Skirmisher 5560 | -8/Materials | Build established: Skirmisher 5704 | -8/Materials | Entered Factory 5704 | -7/Factory | Accompanied by 2 allies 5704 | -7/Factory | Evolved 2 slots: Power x1, Utility x1 5706 | -7/Factory | FarCom data flow suspended 5942 | -7/Factory | Identified exit to Lower Caves 6292 | -7/Factory | Lost 9 parts (2n3u4w) 6474 | -7/Factory | Found Prototype Launcher 6610 | -7/Factory | Identified Rocket Array 6643 | -7/Factory | Fabricated Lrn. Sensor Array (x1) 6737 | -7/Factory | Core integrity fell below 50% 6766 | -7/Factory | Lost 4 parts (1p3n) 7013 | -7/Factory | Fabricated Adv. Signal Interpreter? 7185 | -7/Factory | Garrison activated, responded to threat 7216 | -7/Factory | Lost 6 parts (3n3w) 7241 | -7/Factory | Entered Lower Caves 7241 | -7/Lower Caves | Spotted J3-Z8P(f) 7241 | -7/Lower Caves | Spotted 0U-LES(f) 7241 | -7/Lower Caves | Spotted WW-C6G(f) 7242 | -7/Lower Caves | Encountered a Master Thief 7242 | -7/Lower Caves | Encountered a Master Thief 7242 | -7/Lower Caves | Encountered a Master Thief 7245 | -7/Lower Caves | Arc Projector stolen by Master Thief 7247 | -7/Lower Caves | Flak Gun stolen by Master Thief 7247 | -7/Lower Caves | Adv. Assault Cannon stolen by Master Thief 7378 | -7/Lower Caves | Encountered a Warlord checkpoint 7812 | -7/Lower Caves | Build established: Scavenger-Skirmisher 8116 | -7/Lower Caves | Build established: Scavenger-Mutant 8863 | -7/Lower Caves | Discovered new exit (range 17) 8882 | -7/Lower Caves | Identified exit to Lower Caves 9086 | -7/Lower Caves | Entered another Lower Caves area 9148 | -7/Lower Caves | Discovered new exit (range 18) 9182 | -7/Lower Caves | Identified exit to Factory 9992 | -7/Lower Caves | Build established: Derelict-Mutant 11026 | -7/Lower Caves | Encountered a Warlord checkpoint 11336 | -7/Lower Caves | Build established: Scavenger-Mutant 12176 | -7/Lower Caves | Discovered new exit (range 14) 12191 | -7/Lower Caves | Identified exit to Zion 12674 | -7/Lower Caves | Learned Research trap positions 12674 | -7/Lower Caves | Learned Extension trap positions 12674 | -7/Lower Caves | Learned Extension emergency access door positions 13606 | -7/Lower Caves | Acquired the password to a Derelict Tinkerer's latest research 13615 | -7/Lower Caves | Found Prototype Special Weapon 13629 | -7/Lower Caves | Entered Zion 13639 | -7/Zion | Build established: Derelict-Mutant 13659 | -7/Zion | Found Prototype Device 13749 | -7/Zion | Discovered new exit (range 19) 13892 | -7/Zion | Learned location of Quarantine (-2) 13981 | -7/Zion | Learned location of Armory (-3) 14044 | -7/Zion | Learned Factory trap positions 14304 | -7/Zion | Gained Derelict followers 14365 | -7/Zion | Found Prototype Device 14463 | -7/Zion | Identified Mobile Refinery Mk. CCLXVII 14489 | -7/Zion | Discovered new exit (range 11) 14493 | -7/Zion | Identified Molecular Deconstructor 14851 | -7/Zion | Identified Bomb Factory No. 2 14907 | -7/Zion | Saw the warning signs outside the Deep Caves entrance 14910 | -7/Zion | Identified exit to Deep Caves 14915 | -7/Zion | Entered Deep Caves 14915 | -7/Deep Caves | Accompanied by 3 allies 15597 | -7/Deep Caves | Z-Facility disabled 15608 | -7/Deep Caves | Attacked by Z-Imprinter 15649 | -7/Deep Caves | Core integrity fell below 20% 15693 | -7/Deep Caves | Lost 8 parts (3p1u4w) 15875 | -7/Deep Caves | Found Zio. Weapon Casing 15973 | -7/Deep Caves | Build established: Mutant 16247 | -7/Deep Caves | Discovered new exit (range 16) 16512 | -7/Deep Caves | Build established: Derelict-Assassin 16710 | -7/Deep Caves | Found Surveybot 24 Chip 16714 | -7/Deep Caves | Found Surveybot 24 Scanner 16822 | -7/Deep Caves | Identified exit to Proximity Caves 16826 | -7/Deep Caves | Entered Proximity Caves 16826 | -6/Proximity Caves | Accompanied by 1 ally 17017 | -6/Proximity Caves | Build established: Assassin 17623 | -6/Proximity Caves | Discovered exit to Factory (range 14) 17689 | -6/Proximity Caves | Build established: Derelict-Mutant 17722 | -6/Proximity Caves | Entered Factory 17722 | -6/Factory | Accompanied by 1 ally 17722 | -6/Factory | Evolved 2 slots: Propulsion x1, Utility x1 17723 | -6/Factory | Loaded intel: 105 trap records 17992 | -6/Factory | Discovered new exit (range 24) 18045 | -6/Factory | Identified exit to Factory 18127 | -6/Factory | Fabricated Adv. Signal Interpreter (x2) 18537 | -6/Factory | Identified exit to Lower Caves 18709 | -6/Factory | Entered Lower Caves 18726 | -6/Lower Caves | Encountered a Warlord checkpoint 18934 | -6/Lower Caves | Build established: Mutant 19635 | -6/Lower Caves | Learned location of 1 exit from Proximity Caves 19847 | -6/Lower Caves | Learned location of 1 exit from Factory 20889 | -6/Lower Caves | Attracted the attention of an 0b10 checkpoint 21100 | -6/Lower Caves | Discovered new exit (range 23) 21737 | -6/Lower Caves | Identified exit to Lower Caves 22947 | -6/Lower Caves | Entered another Lower Caves area 22976 | -6/Lower Caves | Discovered exit to Factory (range 21) 23663 | -6/Lower Caves | Encountered a Warlord checkpoint 23744 | -6/Lower Caves | Build established: Skirmisher 24400 | -6/Lower Caves | Discovered new exit (range 23) 24416 | -6/Lower Caves | Build established: Mutant 25314 | -6/Lower Caves | Spotted R6-T4J(f) 25315 | -6/Lower Caves | Spotted 48-F3Q(f) 25316 | -6/Lower Caves | Encountered a Master Thief 25316 | -6/Lower Caves | Encountered a Master Thief 25316 | -6/Lower Caves | Encountered a Master Thief 25316 | -6/Lower Caves | Encountered a Master Thief 25319 | -6/Lower Caves | Spotted X2-CRO(f) 25319 | -6/Lower Caves | Spotted 8P-K7A(f) 25331 | -6/Lower Caves | Destroyed 48-F3Q(f) 25804 | -6/Lower Caves | Identified exit to Data Miner 26467 | -6/Lower Caves | Build established: Skirmisher 26964 | -6/Lower Caves | Attracted the attention of an 0b10 outpost 27885 | -6/Lower Caves | Entered Data Miner 27885 | -6/Data Miner | Discovered new exit (range 6) 27911 | -6/Data Miner | Met Data Miner 28021 | -6/Data Miner | Build established: Scavenger-Mutant 28052 | -6/Data Miner | Learned location of Section 7 (-2) 28052 | -6/Data Miner | Acquired the access code to Warlord's prototype stash 28070 | -6/Data Miner | Received God Mode back door access code from Data Miner 28169 | -6/Data Miner | Interfaced with the Data Conduit 28548 | -6/Data Miner | Build established: Mutant 28828 | -6/Data Miner | Identified exit to Proximity Caves 28891 | -6/Data Miner | Entered Proximity Caves 29281 | -5/Proximity Caves | Build established: Skirmisher 29654 | -5/Proximity Caves | Learned Factory garrison access intel 29886 | -5/Proximity Caves | Build established: Mutant 30228 | -5/Proximity Caves | Learned 8 Factory zone layouts 31046 | -5/Proximity Caves | Entered Factory 31046 | -5/Factory | Evolved 2 slots: Utility x1, Weapon x1 31047 | -5/Factory | Identified exit to Upper Caves 31049 | -5/Factory | Loaded intel: 220 machine locations 31050 | -5/Factory | Loaded intel: 4 garrison access locations 31348 | -5/Factory | Fabricated Exp. Terrain Scanner (x1) 31455 | -5/Factory | Entered Upper Caves 31600 | -5/Upper Caves | A Derelict revealed a hidden shortcut to "reach the base" 31612 | -5/Upper Caves | Identified exit to Warlord 31870 | -5/Upper Caves | Build established: Scavenger-Skirmisher 32963 | -5/Upper Caves | Encountered a Warlord checkpoint 33139 | -5/Upper Caves | Discovered new exit (range 18) 33463 | -5/Upper Caves | Build established: Scavenger-Mutant 33537 | -5/Upper Caves | Identified exit to Upper Caves 34026 | -5/Upper Caves | Entered another Upper Caves area 34026 | -5/Upper Caves | Spotted 1S-E1E(f) 34027 | -5/Upper Caves | Encountered a Master Thief 34044 | -5/Upper Caves | Destroyed 1S-E1E(f) 34060 | -5/Upper Caves | Discovered new exit (range 16) 34414 | -5/Upper Caves | Learned 8 Research zone layouts 34592 | -5/Upper Caves | Build established: Mutant 34950 | -5/Upper Caves | Found Alien Artifact 34950 | -5/Upper Caves | Identified Core Expander 34950 | -5/Upper Caves | Installed Core Expander, added new Utility slot 35245 | -5/Upper Caves | Build established: Scavenger-Mutant 35692 | -5/Upper Caves | Discovered exit to Warlord (range 29) 35932 | -5/Upper Caves | Attracted the attention of an 0b10 checkpoint 36242 | -5/Upper Caves | Build established: Scavenger-Skirmisher 36566 | -5/Upper Caves | Build established: Scavenger-Mutant 37067 | -5/Upper Caves | Learned Factory terminal intel 37443 | -5/Upper Caves | Entered Warlord 37453 | -5/Warlord | Discovered new exit (range 30) 37533 | -5/Warlord | Received a Watcher feed algorithm from an ecstatic Tinkerer 38053 | -5/Warlord | Met Warlord 38067 | -5/Warlord | Opened Warlord's prototype stash 38072 | -5/Warlord | Warlord's base attacked by MAIN.C 38088 | -5/Warlord | Found Ghost Barrier 38094 | -5/Warlord | Found Vortex Chain Reactor 38154 | -5/Warlord | Build established: Commander-Mutant 38210 | -5/Warlord | Found Prototype Energy Gun 38210 | -5/Warlord | Identified Vortex Shotgun 38216 | -5/Warlord | Found Prototype Energy Gun 38216 | -5/Warlord | Identified Vortex Rifle 38220 | -5/Warlord | Found Prototype Launcher 38220 | -5/Warlord | Identified Vortex Catalyst Activator 38408 | -5/Warlord | Opened side exit 38422 | -5/Warlord | Warlord forces counterattacked 38461 | -5/Warlord | Identified exit to Proximity Caves 38471 | -5/Warlord | Entered Proximity Caves 38471 | -4/Proximity Caves | Accompanied by 4 allies 39410 | -4/Proximity Caves | Received a Behemoth hack from an annoying Tinkerer 39434 | -4/Proximity Caves | Build established: Scavenger-Mutant 39690 | -4/Proximity Caves | Found Alien Artifact 39690 | -4/Proximity Caves | Identified Dimensional Node Initializer 39690 | -4/Proximity Caves | Initialized slip node 40505 | -4/Proximity Caves | Discovered new exit (range 30) 40528 | -4/Proximity Caves | Learned Research trap positions 42410 | -4/Proximity Caves | Identified exit to Factory 43105 | -4/Proximity Caves | Entered Factory 43105 | -4/Factory | Evolved 2 slots: Utility x1, Weapon x1 43106 | -4/Factory | Loaded intel: 270 machine locations 43107 | -4/Factory | Loaded intel: 22 terminal locations 43123 | -4/Factory | Sucked down chute 43123 | -4/Factory | Entered Waste 43124 | -4/Waste | Met a frightened Derelict 43186 | -4/Waste | Destroyed C-40 Crusher 43228 | -4/Waste | Spotted C-40 Crusher 43230 | -4/Waste | Spotted C-40 Crusher 43234 | -4/Waste | Spotted C-40 Crusher 43236 | -4/Waste | Destroyed C-40 Crusher 43247 | -4/Waste | Allies destroyed C-40 Crusher 43248 | -4/Waste | Destroyed C-40 Crusher 43261 | -4/Waste | Spotted C-40 Crusher 43265 | -4/Waste | Destroyed C-40 Crusher 43269 | -4/Waste | Spotted C-40 Crusher 43290 | -4/Waste | Destroyed C-40 Crusher 43343 | -4/Waste | Warlord forces began an assault 43489 | -4/Waste | Discovered new exit (range 28) 43528 | -4/Waste | Build established: Scavenger-Skirmisher 43623 | -4/Waste | Identified exit to Factory 43628 | -4/Waste | Entered Factory 43628 | -4/Factory | Accompanied by 20 allies 43629 | -4/Factory | Loaded intel: 285 machine locations 43721 | -4/Factory | Garrison activated, responded to threat 43840 | -4/Factory | Identified exit to Upper Caves 43840 | -4/Factory | Identified exit to Extension 44040 | -4/Factory | Entered Upper Caves 44040 | -4/Upper Caves | Accompanied by 9 allies 44445 | -4/Upper Caves | Build established: Derelict-Mutant 44594 | -4/Upper Caves | Attracted the attention of an 0b10 checkpoint 44731 | -4/Upper Caves | Discovered new exit (range 29) 44784 | -4/Upper Caves | Identified exit to Upper Caves 44876 | -4/Upper Caves | Build established: Derelict-Skirmisher 45699 | -4/Upper Caves | Entered another Upper Caves area 45699 | -4/Upper Caves | Accompanied by 8 allies 45702 | -4/Upper Caves | Discovered new exit (range 17) 45763 | -4/Upper Caves | Identified exit to Research 46529 | -4/Upper Caves | Build established: Scavenger-Skirmisher 46921 | -4/Upper Caves | Discovered new exit (range 26) 46941 | -4/Upper Caves | Spotted TS-G9C(f) 46942 | -4/Upper Caves | Encountered a Master Thief 46943 | -4/Upper Caves | Destroyed TS-G9C(f) 46943 | -4/Upper Caves | Spotted Q4-J7H(f) 46944 | -4/Upper Caves | Encountered a Master Thief 46944 | -4/Upper Caves | Spotted 22-ZMG(f) 46945 | -4/Upper Caves | Encountered a Master Thief 46945 | -4/Upper Caves | Spotted F2-M25(f) 46945 | -4/Upper Caves | Exp. Myomer Leg stolen by Master Thief 46946 | -4/Upper Caves | Encountered a Master Thief 46957 | -4/Upper Caves | Allies destroyed F2-M25(f) 46957 | -4/Upper Caves | Allies destroyed Q4-J7H(f) 47892 | -4/Upper Caves | Identified exit to Zhirov 47897 | -4/Upper Caves | Entered Zhirov 47897 | -4/Zhirov | Accompanied by 1 ally 47897 | -4/Zhirov | Discovered new exit (range 3) 47918 | -4/Zhirov | Met Zhirov 47950 | -4/Zhirov | Zhirov requested help retrieving the SGEMP Prototype 47971 | -4/Zhirov | Found Alien Artifact 47971 | -4/Zhirov | Identified Integrated Dissipator 47971 | -4/Zhirov | Installed Integrated Dissipator, increased core heat dissipation (+20) 48218 | -4/Zhirov | Found Alien Artifact 48298 | -4/Zhirov | Identified exit to Proximity Caves 48311 | -4/Zhirov | Cloak Generator disabled 48311 | -4/Zhirov | Attacked by Zhirov 48338 | -4/Zhirov | Zhirov detonated his lab 48388 | -4/Zhirov | Entered Proximity Caves 48440 | -3/Proximity Caves | Lost 4 parts (2u2w) 49885 | -3/Proximity Caves | Lost 6 parts (1p3u2w) 49890 | -3/Proximity Caves | Destroyed 10 combat bots 51394 | -3/Proximity Caves | Discovered exit to Research (range 9) 52449 | -3/Proximity Caves | Entered Research 52449 | -3/Research | Evolved 2 slots: Power x1, Propulsion x1 52450 | -3/Research | Identified exit to Armory 52450 | -3/Research | Identified exit to Testing 52452 | -3/Research | Loaded intel: 82 trap records 52453 | -3/Research | Loaded intel: 118 machine locations 52578 | -3/Research | Identified Transdimensional Reconstructor 52846 | -3/Research | Lost 14 parts (2p2n3u7w) 53018 | -3/Research | System corruption reached 10% 53048 | -3/Research | Lost 4 parts (2n2w) 53131 | -3/Research | Lost 3 parts (1n2w) 53282 | -3/Research | Entered Armory 53283 | -3/Armory | Loaded intel: 67 machine locations 53342 | -3/Armory | Warped through subspace to slip node 53342 | -3/Armory | Discovered new exit (range 1) 53342 | -3/Armory | Identified exit to Lab 53398 | -3/Armory | Entered Lab 53398 | -3/Lab | Accompanied by 3 allies 53552 | -3/Lab | Build established: Scavenger-Mutant 55436 | -3/Lab | Discovered new exit (range 9) 55448 | -3/Lab | Identified exit to Research 55455 | -3/Lab | Hidden lab's door opened automatically 55455 | -3/Lab | Sensor layout match revealed 55456 | -3/Lab | Gained access to the hidden lab's interior 55459 | -3/Lab | Detected by scanners 55465 | -3/Lab | Confronted by A5 55490 | -3/Lab | Destroyed A5 with decrypted code from the hidden lab 55593 | -3/Lab | Decrypted terminal 55623 | -3/Lab | Found Core Expander 55623 | -3/Lab | Installed Core Expander, added new Weapon slot 55637 | -3/Lab | Found Alien Artifact 55637 | -3/Lab | Identified Integrated Reactor 55637 | -3/Lab | Installed Integrated Reactor, increased core energy generation (+10) 55696 | -3/Lab | Decrypted terminal 55696 | -3/Lab | Acquired modification code for an L2 power cell 55732 | -3/Lab | Found Prototype Special Weapon 56037 | -3/Lab | Found Prototype Energy Cannon 56038 | -3/Lab | Identified Warp Cannon 56044 | -3/Lab | Found Prototype Energy Gun 56045 | -3/Lab | Identified Hyp. EM Gauss Rifle 56046 | -3/Lab | Identified Gui. Remote Datajack 56053 | -3/Lab | Found Prototype Protection 56054 | -3/Lab | Identified Hvy. Regenerative Plating 56651 | -3/Lab | Found Quantum Router 56914 | -3/Lab | Disabled Active System Cloaker 56920 | -3/Lab | MAIN.C forces arrive to investigate 57067 | -3/Lab | Found Alien Artifact 57138 | -3/Lab | Entered Research 57138 | -2/Research | Warlord forces began assault on 0b10 57138 | -2/Research | Evolved 2 slots: Propulsion x1, Utility x1 57139 | -2/Research | Identified exit to Quarantine 57140 | -2/Research | Loaded intel: 63 trap records 57141 | -2/Research | Loaded intel: 96 machine locations 57194 | -2/Research | Identified Core Reset Matrix 57248 | -2/Research | Research machine network offline 57422 | -2/Research | Spotted Executioner 57423 | -2/Research | Spotted Striker 57425 | -2/Research | Borebot progress halted 57454 | -2/Research | Met up with Warlord 57535 | -2/Research | Found Exp. Targeting Computer 57557 | -2/Research | Build established: Scavenger-Executioner 57783 | -2/Research | Spotted Executioner 57789 | -2/Research | Destroyed Executioner 57795 | -2/Research | Spotted Tracker 57805 | -2/Research | Destroyed Tracker 57854 | -2/Research | Spotted Striker 57854 | -2/Research | Spotted Striker 57858 | -2/Research | Spotted Striker 57927 | -2/Research | Discovered new exit (range 11) 57938 | -2/Research | Identified exit to Access 58006 | -2/Research | Spotted Executioner 58006 | -2/Research | Spotted Executioner 58006 | -2/Research | Spotted Striker 58006 | -2/Research | Spotted Striker 58020 | -2/Research | Destroyed Striker 58020 | -2/Research | Destroyed Striker 58028 | -2/Research | Destroyed Executioner 58078 | -2/Research | Lost 4 parts (1u3w) 58166 | -2/Research | Warlord invited to help at Command 58314 | -2/Research | Spotted Striker 58381 | -2/Research | Entered Quarantine 58382 | -2/Quarantine | Loaded intel: 65 machine locations 58396 | -2/Quarantine | Found Alien Artifact 58396 | -2/Quarantine | Identified Matter Drive 58498 | -2/Quarantine | Build established: Scavenger-Mutant 58619 | -2/Quarantine | Found Alien Artifact 58763 | -2/Quarantine | Found Alien Artifact 58763 | -2/Quarantine | Identified Terrabomb 58763 | -2/Quarantine | Used Terrabomb 58768 | -2/Quarantine | Intercept squad dispatched 58781 | -2/Quarantine | Spotted Tracker 58783 | -2/Quarantine | Spotted Tracker 58784 | -2/Quarantine | Identified Stasis Generator 58799 | -2/Quarantine | Destroyed Tracker 58807 | -2/Quarantine | Spotted Combat Programmer 58818 | -2/Quarantine | Spotted Combat Programmer 58818 | -2/Quarantine | Destroyed Tracker 58840 | -2/Quarantine | Destroyed Combat Programmer 58871 | -2/Quarantine | Destroyed Combat Programmer 58886 | -2/Quarantine | Found Exp. Phase Shifter 58890 | -2/Quarantine | Found Prototype Energy Gun 58895 | -2/Quarantine | Lost 11 parts (1p2n5u3w) 58896 | -2/Quarantine | Identified Immobilizer 58898 | -2/Quarantine | Found Exp. Phase Shifter 59021 | -2/Quarantine | Cryocooling Duct disabled 59036 | -2/Quarantine | Ambient heat levels rising (+20) 59036 | -2/Quarantine | Non-combat units ordered to evacuate 59077 | -2/Quarantine | Lost 4 parts (1p2n1w) 59339 | -2/Quarantine | Found Alien Artifact 59341 | -2/Quarantine | Found Transdimensional Reconstructor 59352 | -2/Quarantine | Found Dimensional Node Initializer 59427 | -2/Quarantine | System corruption reached 10% 59463 | -2/Quarantine | Intercept squad dispatched 59470 | -2/Quarantine | Spotted Tracker 59470 | -2/Quarantine | Spotted Tracker 59470 | -2/Quarantine | Spotted Tracker 59481 | -2/Quarantine | Rewired Tracker 59488 | -2/Quarantine | Destroyed Tracker 59492 | -2/Quarantine | Destroyed Tracker 59494 | -2/Quarantine | Spotted Combat Programmer 59495 | -2/Quarantine | Found Alien Artifact 59497 | -2/Quarantine | Spotted Combat Programmer 59497 | -2/Quarantine | Spotted Combat Programmer 59503 | -2/Quarantine | Destroyed Combat Programmer 59516 | -2/Quarantine | Destroyed Combat Programmer 59538 | -2/Quarantine | Destroyed Combat Programmer 59544 | -2/Quarantine | Found Exp. Phase Shifter 59546 | -2/Quarantine | Found Immobilizer 59551 | -2/Quarantine | Lost 8 parts (1p1n3u3w) 59557 | -2/Quarantine | Found Exp. Targeting Computer 59883 | -2/Quarantine | Discovered new exit (range 6) 59887 | -2/Quarantine | Identified exit to Section 7 59920 | -2/Quarantine | Entered Section 7 59921 | -2/Section 7 | Loaded intel: 147 machine locations 59976 | -2/Section 7 | Lost 3 parts (3w) 59988 | -2/Section 7 | Identified Hpw. Transdimensional Reconstructor 59988 | -2/Section 7 | Identified Subatomic Replicator 60064 | -2/Section 7 | Lost 4 parts (1p2n1w) 60193 | -2/Section 7 | Found Gui. Micro-nuke Launcher 60219 | -2/Section 7 | Spotted S7 Guard 60234 | -2/Section 7 | Destroyed S7 Guard 60268 | -2/Section 7 | Found Alien Artifact 60268 | -2/Section 7 | Identified Core Membrane 60268 | -2/Section 7 | Installed Core Membrane, gained immunity to corruption 60315 | -2/Section 7 | Found Exp. Shield Generator 60320 | -2/Section 7 | Found Exp. Shield Generator 60449 | -2/Section 7 | Found Alien Artifact 60450 | -2/Section 7 | Identified Integrity Redistributor 60450 | -2/Section 7 | Used Integrity Redistributor, redistributed integrity from core (-156) 60497 | -2/Section 7 | Intercept squad dispatched 60512 | -2/Section 7 | Spotted Tracker 60518 | -2/Section 7 | Spotted Tracker 60544 | -2/Section 7 | Destroyed Tracker 60552 | -2/Section 7 | Destroyed Tracker 60562 | -2/Section 7 | Spotted Combat Programmer 60563 | -2/Section 7 | Found Exp. Targeting Computer 60568 | -2/Section 7 | Spotted Combat Programmer 60572 | -2/Section 7 | Destroyed Combat Programmer 60576 | -2/Section 7 | Destroyed Combat Programmer 60706 | -2/Section 7 | Build established: Scavenger-Executioner 60718 | -2/Section 7 | Lost 3 parts (1n2w) 60815 | -2/Section 7 | Initialized slip node 60839 | -2/Section 7 | Found Integrity Redistributor 60867 | -2/Section 7 | Core integrity fell below 50% 60897 | -2/Section 7 | Spotted Executioner 60905 | -2/Section 7 | Destroyed Executioner 60905 | -2/Section 7 | Spotted Executioner 60914 | -2/Section 7 | Destroyed Executioner 60967 | -2/Section 7 | First assault squad dispatched 61114 | -2/Section 7 | Destroyed 8 combat bots 61122 | -2/Section 7 | Lost 4 parts (1p3w) 61145 | -2/Section 7 | Scanned by Researcher 61183 | -2/Section 7 | Modified the L2 Power Cell with code from the hidden lab 61302 | -2/Section 7 | Found Alien Artifact 61305 | -2/Section 7 | Identified LRC Insulator 61305 | -2/Section 7 | Installed LRC Insulator, gained EM resistance (25) 61310 | -2/Section 7 | Found Alien Artifact 61310 | -2/Section 7 | Identified LRC Energy Well 61310 | -2/Section 7 | Installed LRC Energy Well, increased energy storage capacity (+250) 61312 | -2/Section 7 | Warped through subspace to slip node 61447 | -2/Section 7 | Spotted B-90 Cyclops 61449 | -2/Section 7 | Befriended a Behemoth using the annoying Tinkerer's hack 61581 | -2/Section 7 | Spotted S7 Guard 61586 | -2/Section 7 | Garrison activated, responded to threat 61602 | -2/Section 7 | Destroyed S7 Guard 61623 | -2/Section 7 | Found Alien Artifact 61647 | -2/Section 7 | Lost 6 parts (1p1u4w) 61658 | -2/Section 7 | Intercept squad dispatched 61658 | -2/Section 7 | Spotted Tracker 61658 | -2/Section 7 | Spotted Tracker 61659 | -2/Section 7 | Spotted Combat Programmer 61660 | -2/Section 7 | Spotted Tracker 61663 | -2/Section 7 | Spotted Combat Programmer 61665 | -2/Section 7 | Spotted Combat Programmer 61683 | -2/Section 7 | Used Integrity Redistributor, redistributed integrity to core (+124) 61691 | -2/Section 7 | Entered Access 61691 | -1/Access | Evolved 1 slot: Utility x1 61692 | -1/Access | Loaded intel: 100 machine locations 61722 | -1/Access | Lost 17 parts (3p6n5u3w) 61731 | -1/Access | Build established: Scavenger-Mutant 61991 | -1/Access | First assault squad dispatched 62007 | -1/Access | Identified Integrated Singularity Reactor 62007 | -1/Access | Installed Integrated Singularity Reactor, increased core energy generation (+20) 62180 | -1/Access | Warped through subspace 62256 | -1/Access | Lost 12 parts (1p4n3u4w) 62434 | -1/Access | Discovered new exit (range 8) 62443 | -1/Access | Identified exit to Command 62445 | -1/Access | Entered Command 62446 | -1/Command | Loaded intel: 63 machine locations 62473 | -1/Command | Lost 4 parts (1p2n1w) 62602 | -1/Command | Core integrity fell below 50% 62645 | -1/Command | Spotted Striker 62646 | -1/Command | Spotted Executioner 62646 | -1/Command | Spotted Striker 62646 | -1/Command | Spotted Alpha 7 62646 | -1/Command | Spotted Executioner 62646 | -1/Command | Spotted Alpha 7 62647 | -1/Command | Spotted Executioner 62647 | -1/Command | Spotted Executioner 62650 | -1/Command | Lost 7 parts (1p2n4u) 62651 | -1/Command | Befriended a Behemoth using the annoying Tinkerer's hack 62653 | -1/Command | Core integrity fell below 20% 62653 | -1/Command | Discovered new exit (range 19) 62654 | -1/Command | Destroyed by S-43 Plague with Heavy Machine Gun Last Messages --------------- 62619_ Matter Drive destroyed. 62646_ Knocked back. 62647_ Penetrated by Slug. 62647_ Slug penetrates Repair Station. 62649_ Slug penetrates Wall. 62651_ Penetrated by Slug. 62651_ Linear Gravjet destroyed. 62651_ Core Membrane filtered system corruption (1). 62651_ Slug penetrates Wall. 62652_ Penetrated by Slug. 62653_ Slug penetrates Wall. 62653_ Dropped Med. Storage Unit. 62653_ Access Shell breached. 62653_ EXIT=FOUND 62653_ Slug penetrates Wall. 62653_ Knocked back. 62653_ Penetrated by Slug. 62653_ Slug penetrates Wall. 62654_ Penetrated by Slug. 62654_ Repair Station disabled. Map ----- +----------------------------------------------------+ | # #?????????????????????????????????????????? | | ####"""#?????????????????????????????????????????? | | #####"###????????????????????????????????????????? | | #????###?????????????????????????????????? | | """ ##??## ##????????????????????????????????? | | """T "####"""#????""""""??????????????????????? | | """" # !!!#????"? ??" ?????????????????????? | | """ + !##????" <"?" ????????""???????????? | | # "" #?? " ""?" ???????""""??????????? | | # "" #??? " ??" ???????""""??????????? | | # T" #??? "" """ ????????""???????????? | | #######/# "" #??? ?????????????????????? | | # "" #???? B?????????????????????? | | + #???? B?????????????????????? | | #####/### #????# #?????????????????????? | | ??? # #???? ?????????????????????? | | ? # #???## E E#?????????????????????? | | ! # #???? ?????????????????????? | | !!!# #???## #?????????????????????? | | !!!# #???? ?????????????????????? | | !! ########???## EK#?????????????????????? | | #########?####?????# ?????????????????????" | | = # #??????# ^ 7??????????????????????? | | # ##?????# ^ ??????????????????????? | | !# "" ???????#E///##?????????????????????? | | # """ #???????#7 @;#?????????????????????? | | # T" #???????# ##?????????????????????? | | # """ #???????# ;#?????????????????????? | | # "" #???????# s ;""###########?????????? | | # #???????# s #?????????? | | #####?? ????????#; s #?????????? | | #########+############Kss k ????? | | sR s ????? | | s ?????? | | ?????? | | ??????? | | ##########/######## ??????? | | #??????? ????????# | ??????? | | #????? ??????????# ???????? | | #??? ????????????# "" ???????? | | +? ?????????????# """" ????????? | | #### ???????????????# """"? ????????? | | ?????????????????????# ""??? ????????? | | ?????????????????????# " "" ?????????????? | | ?????????????????????# ""R"" ????????????? | | ?????????????????????# """" ????????????? | | ?????????????????????##+######## """"T""""???????? | | ????????????????????????????????"""""""""""??????? | | ?????????????????????????????????????????????????? | | ?????????????????????????????????????????????????? | +----------------------------------------------------+ Best States ------------- Heat Dissipation 159 Energy Generation 93 Energy Capacity 915 Matter Stores 300 Matter Capacity 300 Sight Range 20 Robot Scan Range 22 Terrain Scan Range 30 Terrain Scan Density 2010 Power Amplification 40 Armor Coverage 600 Resistance: EM 25 Core Shielding 20 Propulsion Shielding 90 Utility Shielding 66 Weapon Shielding 100 Phase Shifting 20 Evasion (%) 60 Targeting Accuracy 30 Target Analysis 8 Recoil Reduction 4 Offensive Hacking 11 Defensive Hacking 45 Item Schematics ----------------- Adv. Signal Interpreter | -8/Materials | Scanalyzed Lgt. Angular Momentum Engine | -8/Materials | Scanalyzed Gauss Rifle | -8/Materials | Scanalyzed Gauss Cannon | -8/Materials | Scanalyzed Plasma Cannon | -8/Materials | Scanalyzed Rocket Launcher | -8/Materials | Scanalyzed Hvy. Particle Cannon | -8/Materials | Scanalyzed Assault Cannon | -8/Materials | Scanalyzed Imp. Terrain Scan Processor | -8/Materials | Extracted Com. Matter Pod | -8/Materials | Extracted Armor Integrity Analyzer | -8/Materials | Extracted Adv. Targeting Computer | -8/Materials | Extracted Lrn. Sensor Array | -7/Factory | Hacked Beamcaster | -7/Zion | Free Hvy. Riot Gun | -7/Zion | Free Battle Cannon | -7/Zion | Free Bore Cannon | -7/Zion | Free Barrage Gun | -7/Zion | Free Exp. Flexi-carbon Leg | -6/Data Miner | Free Exp. Terrain Scanner | -6/Data Miner | Free Combat Drone Bay | -6/Data Miner | Free Lgt. Regenerative Plating | -6/Data Miner | Free Cmb. Gravmag System | -6/Data Miner | Free Plasma Sword | -6/Data Miner | Free Coil Gun | -5/Factory | Scanalyzed Hvy. Insulated Plating | -5/Factory | Extracted Greatsword | -5/Factory | Extracted Imp. Launcher Guidance Computer | -5/Factory | Extracted Imp. Remote Datajack | -5/Factory | Extracted Hardlight Generator | -5/Factory | Extracted Lrn. Proton Cannon | -5/Factory | Extracted Imp. Arc Thrower | -4/Zhirov | Free Exp. Optical Array | -4/Zhirov | Free Exp. Heat Sink | -4/Zhirov | Free Assault Drone Bay | -4/Zhirov | Free Robot Schematics ------------------ S-27 Virus | -6/Data Miner | Free G-50 Soldier | -6/Data Miner | Free G-67 Veteran | -6/Data Miner | Free L-41 Fighter | -6/Data Miner | Free P-70 Sage | -6/Data Miner | Free H-66 Slayer | -6/Data Miner | Free I-36 Angel | -6/Data Miner | Free I-47 Archangel | -6/Data Miner | Free Fabricated ------------ Lrn. Sensor Array | x1 | -7/Factory Adv. Signal Interpreter | x2 | -7/Factory Adv. Signal Interpreter | x2 | -6/Factory Exp. Terrain Scanner | x1 | -5/Factory Alien Tech Used ----------------- Core Expander Dimensional Node Initializer Integrated Dissipator Transdimensional Reconstructor Integrated Reactor Matter Drive Terrabomb Stasis Generator Core Membrane Integrity Redistributor LRC Insulator LRC Energy Well Integrated Singularity Reactor High-powered Transdimensional Reconstructor Achievements -------------- Minesweeper Challenges ------------ None Game ------ Seed ReclamationShrapnelShielding Manual? 0 Play Time 09:54:00 Cumulative 275.1 hours Start 2021.01.13 @ 09:14:30 End 2021.01.15 @ 13:51:53 Sessions 21 Manual Loads 0 Difficulty Rogue Special Mode None Game No. 81 Rogue 58 Adventurer 23 Explorer 0 Win Type - Total 10 Types 7/0/2/1/0/0/0/0/0 Lore% 88 Gallery% 91 Achievement% 71 Wizard Run 0 Options --------- ASCII 0 Keyboard 0 Movement Mouse Keybinds 0 Fullscreen 1 Font 18/SmallcapsGlow Map View 76x50 Tactical HUD 1 Map Filters NONE Filters NONE Steam 1 RUN: 4e9aec0f-2de3-4235-bfef-75ad3fc353a5